Workbook

Sheet PRODUKTY
B2: ANO
B3: NE
A5: Predaj stavebných hmôt
A6: Názov materiálu | E6: Balenie MJ | G6: Paleta (kg) | H6: Cena v € bez DPH | J6: Cena v € vr. DPH | L6: Silo | M6: Dodacia lehota na vyžiadanie
H7: Balenie | I7: za MJ | J7: Balenie | K7: za MJ
C8: Doplnkové info | D8: Doplnkové info
A9: CONSTRUCTION SYSTEM
A10: SUROVINY | I10: 1 tona | K10: 1 tona
A11: 1000 | B11: NEHASENÉ VÁPNO | E11: 25 | F11: kg | G11: 1200 | H11: =(I11/1000)*E11 -> 17.625 | I11: 705 | J11: =H11*1.2 -> 21.15 | K11: =I11*1.2 -> 846 | M11: ANO
A12: 1010 | B12: VÁPENNÝ HYDRÁT | E12: 20 | F12: kg | G12: 800 | H12: =(I12/1000)*E12 -> 11.64 | I12: 582 | J12: =H12*1.2 -> 13.968 | K12: =I12*1.2 -> 698.4
A13: BETÓNY | I13: 1 tona | K13: 1 tona
A14: 1120 | B14: BETÓN 20MPa 4mm | D14: C 16/20 | E14: 25 | F14: kg | G14: 1200 | H14: =(I14/1000)*E14 -> 4.525 | I14: 181 | J14: =H14*1.2 -> 5.43 | K14: =I14*1.2 -> 217.2 | L14: ANO
A15: 1125 | B15: BETÓN 25MPa 4mm | D15: C 20/25 | E15: 25 | F15: kg | G15: 1200 | H15: =(I15/1000)*E15 -> 5.05 | I15: 202 | J15: =H15*1.2 -> 6.06 | K15: =I15*1.2 -> 242.4 | L15: ANO
A16: 1128 | B16: BETÓN 20MPa 8mm Do vypredania zásob | D16: C 16/20 | E16: 25 | F16: kg | G16: 1200 | H16: 4.725 | I16: 189 | J16: 5.67 | K16: 226.8
A17: 1130 | B17: BETÓN 30MPa 4mm | D17: C 25/30 | E17: 25 | F17: kg | G17: 1200 | H17: 6.125 | I17: 245 | J17: 7.35 | K17: 294 | L17: ANO
A18: 1138 | B18: BETÓN 30MPa 8mm | D18: C 25/30 | E18: 25 | F18: kg | G18: 1200 | H18: 5.525 | I18: 221 | J18: 6.63 | K18: 265.2
A19: 1185 | B19: BETÓN PREFA 30MPa | D19: C 25/30 | E19: 25 | F19: kg | G19: 1200 | H19: 5.875 | I19: 235 | J19: 7.05 | K19: 282
A20: MUROVACIE MALTY | I20: 1 tona | K20: 1 tona
A21: 1300 | B21: UNI MALTA 2,5MPa | E21: 25 | F21: kg | G21: 1200 | H21: =(I21/1000)*E21 -> 5.4375 | I21: 217.5 | J21: =H21*1.2 -> 6.525 | K21: =I21*1.2 -> 261
A22: 1305 | B22: MUROVACIA MALTA 5MPa | E22: 25 | F22: kg | G22: 1200 | H22: =(I22/1000)*E22 -> 4.25 | I22: 170 | J22: =H22*1.2 -> 5.1 | K22: =I22*1.2 -> 204 | L22: ANO
A23: 1306 | B23: MUROVACIA MALTA JEMNÁ 5MPa | E23: 25 | F23: kg | G23: 1200 | H23: 4.4 | I23: 176 | J23: 5.28 | K23: 211.2 | L23: ANO
A24: 1310 | B24: MUROVACIA MALTA 10MPa | E24: 25 | F24: kg | G24: 1200 | H24: 4.8625 | I24: 194.5 | J24: 5.835 | K24: 233.4 | L24: ANO
A25: 1315 | B25: MUROVACIA MALTA 15MPa | E25: 25 | F25: kg | G25: 1200 | H25: 6.75 | I25: 270 | J25: 8.1 | K25: 324
A26: 1320 | B26: MUROVACIA MALTA 20MPa | E26: 25 | F26: kg | G26: 1200 | H26: 9.075 | I26: 363 | J26: 10.89 | K26: 435.6
A27: 1351 | B27: MUROVACIAMALTA 5MPa | E27: 25 | F27: kg | G27: 1200 | H27: 7.825 | I27: 313 | J27: 9.39 | K27: 375.6
A28: 1352 | B28: MUROVACIA MALTA 10MPa | E28: 25 | F28: kg | G28: 1200 | H28: 10.15 | I28: 406 | J28: 12.18 | K28: 487.2 | M28: ANO
A29: 1353 | B29: MUROVACIA MALTA 10MPa Do vyprodania zásob | E29: 20 | F29: kg | G29: 1000 | H29: 15.12 | I29: 756 | J29: 18.144 | K29: 907.2 | M29: ANO
A30: 1354 | B30: ZAKLADACIA MALTA 10MPa Do vypredania zásob | E30: 25 | F30: kg | G30: 1200 | H30: 8.1 | I30: 324 | J30: 9.72 | K30: 388.8 | M30: ANO
A31: MUROVACIE MALTY | I31: Paleta | K31: Paleta
A32: 1370 | B32: SUPERTHERM | E32: 28.5 | F32: l | G32: 40 ks | H32: =(I32/600)*15 -> 8 | I32: 320 | J32: 9.6 | K32: 384 | M32: ANO
A33: 1371 | B33: SUPERTHERM | E33: 20 | F33: kg | G33: 1000 | H33: =(I33/1000)*E33 -> 10.4 | I33: 520 | J33: 12.48 | K33: 624 | M33: ANO
B34: Orientačné hmotnosti balenia (vrecel/paleta): 1370 - cca. 15 kg / cca. 600 kg
A35: SPOJOVACÍ MOSTÍK | I35: 1 tona | K35: 1 tona
A36: 1500 | B36: KONTAKT CEMENT | E36: 25 | F36: kg | G36: 1200 | H36: =(I36/1000)*E36 -> 56.75 | I36: 2270 | J36: =H36*1.2 -> 68.1 | K36: =I36*1.2 -> 2724 | M36: ANO
A37: REPROFILÁCIE | I37: 1 tona | K37: 1 tona
A38: 1600 | B38: ANTIKORÓZNY NÁTER | E38: 5 | F38: kg | G38: 360 | H38: =(I38/1000)*E38 -> 31.92 | I38: 6384 | J38: =H38*1.2 -> 38.304 | K38: =I38*1.2 -> 7660.8 | M38: ANO
A39: 1610 | B39: OPRAVNÁ MALTA R3 | E39: 25 | F39: kg | G39: 1050 | H39: =(I39/1000)*E39 -> 30 | I39: 1200 | J39: =H39*1.2 -> 36 | K39: =I39*1.2 -> 1440 | M39: ANO
A40: 1620 | B40: OPRAVNÁ MALTA R3 Do vypredania zásob | E40: 25 | F40: kg | G40: 1050 | H40: =(I40/1000)*E40 -> 26.25 | I40: 1050 | J40: 31.5 | K40: 1260 | M40: ANO
A41: 1640 | B41: OPRAVNÁ MALTA JEMNÁ | E41: 25 | F41: kg | G41: 1050 | H41: 31.4 | I41: 1256 | J41: 37.68 | K41: 1507.2 | M41: ANO
A42: 1650 | B42: OPRAVNÁ MALTA R4 | E42: 25 | F42: kg | G42: 1050 | H42: 35.675 | I42: 1427 | J42: 42.81 | K42: 1712.4 | M42: ANO
A43: HYDROIZOLAČNÉ HMOTY | I43: 1 kg | K43: 1 kg
A44: 1911 | B44: AQUASTOP HARD | E44: 24 | F44: kg | G44: 1008 | H44: =(I44*E44) -> 48 | I44: 2 | J44: =H44*1.2 -> 57.6 | K44: =I44*1.2 -> 2.4 | M44: ANO
A45: 1920 | B45: AQUASTOP CRYSTAL | E45: 5 | F45: kg | G45: 360 | H45: =(I45*E45) -> 55 | I45: 11 | J45: =H45*1.2 -> 66 | K45: =I45*1.2 -> 13.2 | M45: ANO
A46: 1930 | B46: AQUASTOP BITUM 2K Do vypredania zásob | C46: ZMENA BALENIA | E46: 28 | F46: kg | G46: 504 | H46: 140 | I46: 5 | J46: 168 | K46: 6 | M46: ANO
A47: 1930 | B47: AQUASTOP BITUM 2K | E47: 32 | F47: kg | G47: 576 | H47: 160 | I47: 5 | J47: 192 | K47: 6 | M47: ANO
A48: 1940 | B48: AQUASTOP ELASTIC 2K Do vypredania zásob | E48: 4 | F48: kg | G48: 144 | H48: 16.4 | I48: 4.1 | J48: 19.68 | K48: 4.92 | M48: ANO
A49: 1940 | B49: AQUASTOP ELASTIC 2K | E49: 8 | F49: kg | G49: 576 | H49: 40.8 | I49: 5.1 | J49: 48.96 | K49: 6.12 | M49: ANO
A50: 1940 | B50: AQUASTOP ELASTIC 2K | E50: 20 | F50: kg | G50: 360 | H50: 93.6 | I50: 4.68 | J50: 112.32 | K50: 5.616 | M50: ANO
A51: 1990 | B51: AQUASTOP INJECT | C51: (balenie: 0,5 L) | E51: 1 | F51: ks | H51: =(I51/2) -> 31.6 | I51: 63.2 | J51: 37.92 | K51: 75.84 | M51: ANO
A52: 1990 | B52: AQUASTOP INJECT | E52: 10 | F52: l | H52: =(I52*E52) -> 392.8 | I52: 39.28 | J52: 471.36 | K52: 47.136 | M52: ANO
A53: FACADE SYSTEM
A54: OMIETKY | I54: 1 tona | K54: 1 tona
A55: 2000 | B55: CEMENTOVÝ PREDNÁSTREK | E55: 25 | F55: kg | G55: 1200 | H55: =(I55/1000)*E55 -> 6.3 | I55: 252 | J55: =H55*1.2 -> 7.56 | K55: =I55*1.2 -> 302.4
A56: 2010 | B56: OMIETKA RUČNÁ | E56: 25 | F56: kg | G56: 1200 | H56: =(I56/1000)*E56 -> 4.8375 | I56: 193.5 | J56: =H56*1.2 -> 5.805 | K56: =I56*1.2 -> 232.2 | L56: ANO
A57: 2011 | B57: OMIETKA RUČNÁ JEMNÁ | E57: 25 | F57: kg | G57: 1200 | H57: 5.775 | I57: 231 | J57: 6.93 | K57: 277.2
A58: 2020 | B58: OMÍIETKA STROJOVÁ | E58: 25 | F58: kg | G58: 1200 | H58: 4.9875 | I58: 199.5 | J58: 5.985 | K58: 239.4 | L58: ANO
A59: 2030 | B59: SOKLOVÁ OMIETKA RUČNÁ | E59: 25 | F59: kg | G59: 1200 | H59: 7.75 | I59: 310 | J59: 9.3 | K59: 372
A60: 2040 | B60: OMIETKA ĽAHČENÁ | E60: 25 | F60: kg | G60: 1200 | H60: 8.5 | I60: 340 | J60: 10.2 | K60: 408 | M60: ANO
A61: 2050 | B61: JEDNOVRSTVOVÁ ĽAHČENÁ OMIETKA | E61: 25 | F61: kg | G61: 1200 | H61: 6.25 | I61: 250 | J61: 7.5 | K61: 300 | L61: ANO | M61: ANO
A62: OMIETKY | I62: Paleta | K62: Paleta
A63: 2070 | B63: SUPERTHERM | E63: 28.5 | F63: l | G63: 40 ks | H63: =(I63/40) -> 8.6 | I63: 344 | J63: 10.32 | K63: 412.8 | M63: ANO
A64: 2080 | B64: SUPERTHERM | E64: 28.5 | F64: l | G64: 40 ks | H64: =(I64/40) -> 10.6 | I64: 424 | J64: 12.72 | K64: 508.8 | M64: ANO
B65: Orientačná hmotnosť balenia (vrece/paleta): 2070 cca. 10kg/cca. 400kg; 2080 cca. 8kg/cca. 320kg
A66: TMELY | I66: 1 tona | K66: 1 tona
A67: 2210 | B67: LEPIACA STIERKA ŠTANDARD | E67: 25 | F67: kg | G67: 1200 | H67: =(I67/1000)*E67 -> 9.175 | I67: 367 | J67: =H67*1.2 -> 11.01 | K67: =I67*1.2 -> 440.4
A68: 2220 | B68: LEPIACA STIERKA PROFI Do vypredania zásob | E68: 25 | F68: kg | G68: 1200 | H68: =(I68/1000)*E68 -> 15.175 | I68: 607 | J68: =H68*1.2 -> 18.21 | K68: =I68*1.2 -> 728.4 | M68: ANO
A69: 2230 | B69: LEPIACA STIERKA TOP | E69: 25 | F69: kg | G69: 1200 | H69: 12.5 | I69: 500 | J69: 15 | K69: 600
A70: 2231 | B70: LEPIACA STIERKA TOP | C70: S vláknom | E70: 25 | F70: kg | G70: 1200 | H70: 15.5 | I70: 620 | J70: 18.6 | K70: 744 | M70: ANO
A71: 2231 | B71: LEPIACA STIERKA TOP | C71: Zimná recp.s vláknom | E71: 25 | F71: kg | G71: 1200 | H71: 15.7 | I71: 628 | J71: 18.84 | K71: 753.6 | M71: ANO
A72: 2240 | B72: LEPIACA STIERKAA FIX | E72: 25 | F72: kg | G72: 1200 | H72: 23.625 | I72: 945 | J72: 28.35 | K72: 1134 | M72: ANO
A73: 2250 | B73: LEPIACA STIERKA WOOD Do vypredania zásob | E73: 25 | F73: kg | G73: 1200 | H73: 30.725 | I73: 1229 | J73: 36.87 | K73: 1474.8 | M73: ANO
A74: 2260 | B74: LEPIACA STIERKA DIFU | E74: 25 | F74: kg | G74: 1200 | H74: 32.2 | I74: 1288 | J74: 38.64 | K74: 1545.6
A75: 2270 | B75: LEPIACA STIERKA DISPERZNÁ | E75: 25 | F75: kg | G75: 600 | H75: 85.525 | I75: 3421 | J75: 102.63 | K75: 4105.2 | M75: ANO
A76: DOPLNKY | I76: KUS | K76: KUS
A77: 2400 | B77: ZIMNÁ PRÍSADA COOL | E77: 1 | F77: ks | H77: 10.8 | I77: 10.8 | J77: =H77*1.2 -> 12.96 | K77: =I77*1.2 -> 12.96
A78: 2401 | B78: DECOR ŠABLÓNA TEHLA | D78: 103,5 x 88 cm | E78: 1 | F78: ks | I78: 15.8 | K78: =I78*1.2 -> 18.96 | M78: ANO
A79: 2402 | B79: DECOR ŠABLÓNA TEHLOVÉ NÁROŽIE | D79: 28 x 93,5 cm | E79: 1 | F79: ks | I79: 11.6 | K79: 13.92 | M79: ANO
A80: 2403 | B80: DECOR ŠABLÓNA KAMEŇ POLYGONÁLNY | D80: 103,5 x 89,5 cm | E80: 1 | F80: ks | I80: 15.8 | K80: 18.96 | M80: ANO
A81: 2404 | B81: DECOR ŠABLÓNA PRÍRODNÝ KAMEŇ PLOCHÝ | D81: 98,2 x 68,2 cm | E81: 1 | F81: ks | I81: 15.8 | K81: 18.96 | M81: ANO
A82: DOPLNKY | I82: 1 kg | K82: 1 kg
A83: 2405 | B83: DECOR GLITR | C83: dekoratívne trblietky čierne | E83: 5 | F83: kg | H83: =(I83*E83) -> 39 | I83: 7.8 | J83: =H83*1.2 -> 46.8 | K83: 9.36 | M83: ANO
A84: 2406 | B84: DECOR SĽUDA | C84: odtieň svetlá | D84: 1 - 3 mm | E84: 2 | F84: kg | H84: =(I84*E84) -> 30.5 | I84: 15.25 | J84: =H84*1.2 -> 36.6 | K84: 18.3 | M84: ANO
A85: 2406 | B85: DECOR SĽUDA | C85: odtieň svetlá | D85: 5 - 10 mm | E85: 2 | F85: kg | H85: 41.6 | I85: 20.8 | J85: 49.92 | K85: 24.96 | M85: ANO
A86: 2406 | B86: DECOR SĽUDA | C86: odtieň čierna | D86: 1 - 3 mm | E86: 2 | F86: kg | H86: 41.6 | I86: 20.8 | J86: 49.92 | K86: 24.96 | M86: ANO
A87: 2406 | B87: DECOR SĽUDA | C87: odtieň čierna | D87: 5 - 10 mm | E87: 2 | F87: kg | H87: 48.2 | I87: 24.1 | J87: 57.84 | K87: 28.92 | M87: ANO
A88: DOPLNKY | I88: KUS | K88: KUS
A89: 2410 | B89: MAGIC DECOR PODVALEK "WOOD" | C89: malý | E89: 1 | F89: ks | H89: =E89*I89 -> 28 | I89: 28 | J89: 33.6 | K89: 33.6 | M89: ANO
A90: 2410 | B90: MAGIC DECOR PODVALEK "WOOD" | C90: veľký | E90: 1 | F90: ks | H90: 72.5 | I90: 72.5 | J90: 87 | K90: 87 | M90: ANO
A91: DOPLNKY | I91: 1 bm | K91: 1 bm
A92: 2412 | B92: VÝZTUŽNÁ TKANINA VS 160 A | E92: 55 | F92: m2 | H92: 70.95 | I92: 1.29 | J92: =H92*1.2 -> 85.14 | K92: =I92*1.2 -> 1.548 | M92: ANO
A93: 2413 | B93: VÝZTUŽNÁ TKANINA VS 145 B | E93: 50 | F93: m2 | H93: 46 | I93: 0.92 | J93: =H93*1.2 -> 55.2 | K93: =I93*1.2 -> 1.104 | M93: ANO
A94: 2414 | B94: VÝZTUŽNÁ TKANINA R 267 | E94: 50 | F94: m2 | H94: 200 | I94: 4 | J94: 240 | K94: 4.8 | M94: ANO
A95: 2415 | B95: VÝZTUŽNÁ TKANINA R 85 | E95: 55 | F95: m2 | H95: 69.3 | I95: 1.26 | J95: 83.16 | K95: 1.512 | M95: ANO
A96: PENETRÁCIE | I96: 1 kg | K96: 1 kg
A97: 2610 | B97: PENETRÁCIA PREFARBENÁ | D97: odtieň: modrá | E97: 24 | F97: kg | G97: 576 | H97: =(I97*E97) -> 71.52 | I97: 2.98 | J97: =H97*1.2 -> 85.824 | K97: =I97*1.2 -> 3.576
A98: 2610 | B98: PENETRÁCIA PREFARBENÁ | D98: odtieň: zelená | E98: 24 | F98: kg | G98: 576 | H98: =(I98*E98) -> 71.52 | I98: 2.98 | J98: =H98*1.2 -> 85.824 | K98: =I98*1.2 -> 3.576
A99: 2610 | B99: PENETRÁCIA PREFARBENÁ | D99: odtieň: žltá | E99: 24 | F99: kg | G99: 576 | H99: 71.52 | I99: 2.98 | J99: 85.824 | K99: 3.576
A100: 2610 | B100: PENETRÁCIA PREFARBENÁ | D100: odtieň: oranžová | E100: 24 | F100: kg | G100: 576 | H100: 71.52 | I100: 2.98 | J100: 85.824 | K100: 3.576
A101: 2610 | B101: PENETRÁCIA PREFARBENÁ | D101: odtieň: červená | E101: 24 | F101: kg | G101: 576 | H101: 71.52 | I101: 2.98 | J101: 85.824 | K101: 3.576
A102: 2610 | B102: PENETRÁCIA PREFARBENÁ | D102: odtieň: okrová | E102: 24 | F102: kg | G102: 576 | H102: 71.52 | I102: 2.98 | J102: 85.824 | K102: 3.576
A103: 2610 | B103: PENETRÁCIA PREFARBENÁ | D103: odtieň: hnedá | E103: 24 | F103: kg | G103: 576 | H103: 71.52 | I103: 2.98 | J103: 85.824 | K103: 3.576
A104: 2610 | B104: PENETRÁCIA PREFARBENÁ | D104: odtieň: sivá | E104: 24 | F104: kg | G104: 576 | H104: 71.52 | I104: 2.98 | J104: 85.824 | K104: 3.576
A105: 2610 | B105: PENETRÁCIA PREFARBENÁ | D105: odtieň: biela | E105: 24 | F105: kg | G105: 576 | H105: 71.52 | I105: 2.98 | J105: 85.824 | K105: 3.576
A106: 2610 | B106: PENETRÁCIA PREFARBENÁ | D106: odtieň: modrá | E106: 8 | F106: kg | G106: 576 | H106: 23.84 | I106: 2.98 | J106: 28.608 | K106: 3.576
A107: 2610 | B107: PENETRÁCIA PREFARBENÁ | D107: odtieň: zelená | E107: 8 | F107: kg | G107: 576 | H107: 23.84 | I107: 2.98 | J107: 28.608 | K107: 3.576
A108: 2610 | B108: PENETRÁCIA PREFARBENÁ | D108: odtieň: žltá | E108: 8 | F108: kg | G108: 576 | H108: 23.84 | I108: 2.98 | J108: 28.608 | K108: 3.576
A109: 2610 | B109: PENETRÁCIA PREFARBENÁ | D109: odtieň: oranžová | E109: 8 | F109: kg | G109: 576 | H109: 23.84 | I109: 2.98 | J109: 28.608 | K109: 3.576
A110: 2610 | B110: PENETRÁCIA PREFARBENÁ | D110: odtieň: červená | E110: 8 | F110: kg | G110: 576 | H110: 23.84 | I110: 2.98 | J110: 28.608 | K110: 3.576
A111: 2610 | B111: PENETRÁCIA PREFARBENÁ | D111: odtieň: okrová | E111: 8 | F111: kg | G111: 576 | H111: 23.84 | I111: 2.98 | J111: 28.608 | K111: 3.576
A112: 2610 | B112: PENETRÁCIA PREFARBENÁ | D112: odtieň: hnedá | E112: 8 | F112: kg | G112: 576 | H112: 23.84 | I112: 2.98 | J112: 28.608 | K112: 3.576
A113: 2610 | B113: PENETRÁCIA PREFARBENÁ | D113: odtieň: sivá | E113: 8 | F113: kg | G113: 576 | H113: 23.84 | I113: 2.98 | J113: 28.608 | K113: 3.576
A114: 2610 | B114: PENETRÁCIA PREFARBENÁ | D114: odtieň: biela | E114: 8 | F114: kg | G114: 576 | H114: 23.84 | I114: 2.98 | J114: 28.608 | K114: 3.576
A115: 2610 | B115: PENETRÁCIA PREFARBENÁ | C115: Tónovateľná | E115: 24 | F115: kg | G115: 576 | H115: 78.96 | I115: 3.29 | J115: 94.752 | K115: 3.948
A116: 2610 | B116: PENETRÁCIA PREFARBENÁ | C116: Tónovateľná | E116: 8 | F116: kg | G116: 576 | H116: 26.32 | I116: 3.29 | J116: 31.584 | K116: 3.948
A117: 2612 | B117: PENETRÁCIA POD SILIKÁT | C117: Tónovateľná | E117: 24 | F117: kg | G117: 576 | H117: 80.4 | I117: 3.35 | J117: 96.48 | K117: 4.02
A118: 2612 | B118: PENETRÁCIA POD SILIKÁT | C118: Tónovateľná | E118: 8 | F118: kg | G118: 576 | H118: 26.8 | I118: 3.35 | J118: 32.16 | K118: 4.02
A119: 2613 | B119: PENETRÁCIA ZÁKLADNÁ | E119: 10 | F119: kg | G119: 0 | H119: 59.1 | I119: 5.91 | J119: 70.92 | K119: 7.092
A120: 2613 | B120: PENETRÁCIA ZÁKLADNÁ | E120: 5 | F120: kg | G120: 0 | H120: 29.55 | I120: 5.91 | J120: 35.46 | K120: 7.092
A121: 2614 | B121: PENETRÁCIA HĹBKOVÁ | E121: 10 | F121: kg | G121: 0 | H121: 62.1 | I121: 6.21 | J121: 74.52 | K121: 7.452
A122: 2614 | B122: PENETRÁCIA HĹBKOVÁ | E122: 5 | F122: kg | G122: 0 | H122: 31.05 | I122: 6.21 | J122: 37.26 | K122: 7.452
A123: 2620 | B123: PENETRÁCIA POD MOZAIKOVÉ OMIETKY | C123: základná biela | E123: 24 | F123: kg | G123: 576 | H123: 107.28 | I123: 4.47 | J123: 128.736 | K123: 5.364
A124: 2620 | B124: PENETRÁCIA POD MOZAIKOVÉ OMIETKY | C124: základná biela | E124: 8 | F124: kg | G124: 576 | H124: 35.76 | I124: 4.47 | J124: 42.912 | K124: 5.364
A125: 2620 | B125: PENETRÁCIA POD MOZAIKOVÉ OMIETKY | C125: Tónovateľná | E125: 24 | F125: kg | G125: 576 | H125: 128.16 | I125: 5.34 | J125: 153.792 | K125: 6.408
A126: 2620 | B126: PENETRÁCIA POD MOZAIKOVÉ OMIETKY | C126: Tónovateľná | E126: 8 | F126: kg | G126: 576 | H126: 42.72 | I126: 5.34 | J126: 51.264 | K126: 6.408
A127: OMIETKY A PASTY | I127: 1 tona | K127: 1 tona
A128: 2701 | B128: VONKAJŠÍ ŠTUK | E128: 25 | F128: kg | G128: 1200 | H128: =(I128/1000)*E128 -> 7.5 | I128: 300 | J128: =H128*1.2 -> 9 | K128: =I128*1.2 -> 360
A129: 2702 | B129: VONKAJŠÍŠTUK JEMNÝ | E129: 25 | F129: kg | G129: 1200 | H129: =(I129/1000)*E129 -> 7.725 | I129: 309 | J129: =H129*1.2 -> 9.27 | K129: =I129*1.2 -> 370.8
A130: 2705 | B130: VONKAJŠÍ ŠTUK HRUBÝ BIELY Do vypredania zásob | E130: 25 | F130: kg | G130: 1200 | H130: 9.075 | I130: 363 | J130: 10.89 | K130: 435.6 | M130: ANO
A131: 2709 | B131: VÁPENNÁ OMIETKA | E131: 25 | F131: kg | G131: 1200 | H131: 6.5 | I131: 260 | J131: 7.8 | K131: 312 | M131: ANO
A132: 2710 | B132: FLEXI ŠTUK S VLÁKNOM | C132: vysoko polymérom modif. plastická omietka | E132: 25 | F132: kg | G132: 1200 | H132: 11.225 | I132: 449 | J132: 13.47 | K132: 538.8
A133: 2711 | B133: FLEXI ŠTUK S VLÁKNOM | E133: 25 | F133: kg | G133: 1200 | H133: 12.275 | I133: 491 | J133: 14.73 | K133: 589.2
A134: 2720 | B134: MINERÁLNA OMITKA Do vypredania zásob | E134: 25 | F134: kg | G134: 1200 | H134: 24.75 | I134: 990 | J134: 29.7 | K134: 1188
A135: 2720 | B135: MINERÁLNA OMIETKA Do vypredánia zásob | E135: 25 | F135: kg | G135: 1200 | H135: 24.75 | I135: 990 | J135: 29.7 | K135: 1188
A136: 2720 | B136: MINERÁLNA OMIETKA Do vypredánia zásob | E136: 25 | F136: kg | G136: 1200 | H136: 24.75 | I136: 990 | J136: 29.7 | K136: 1188
A137: OMIETKY A PASTY | I137: 1 kg | K137: 1 kg
A138: 2721 | B138: SILIKONOVÁ OMIETKA | D138: bezpríplatkový odtieň | E138: 25 | F138: kg | G138: 600 | H138: 67 | I138: 2.68 | J138: 80.4 | K138: 3.216
A139: 2721 | B139: SILIKONOVÁ OMIETKA | D139: bezpríplatkový odtieň | E139: 25 | F139: kg | G139: 600 | H139: 67 | I139: 2.68 | J139: 80.4 | K139: 3.216
A140: 2721 | B140: SILIKONOVÁ OMIETKA | D140: bezpríplatkový odtieň | E140: 25 | F140: kg | G140: 600 | H140: 67 | I140: 2.68 | J140: 80.4 | K140: 3.216
A141: 2721 | B141: SILIKONOVÁ OMIETKA | D141: bezpríplatkový odtieň | E141: 25 | F141: kg | G141: 600 | H141: 67 | I141: 2.68 | J141: 80.4 | K141: 3.216
A142: 2721 | B142: SILIKONOVÁ OMIETKA | D142: bezpríplatkový odtieň | E142: 25 | F142: kg | G142: 600 | H142: 67 | I142: 2.68 | J142: 80.4 | K142: 3.216
A143: 2721 | B143: SILIKONOVÁ OMIETKA | D143: bezpríplatkový odtieň | E143: 25 | F143: kg | G143: 600 | H143: 67 | I143: 2.68 | J143: 80.4 | K143: 3.216
A144: 2721 | B144: SILIKONOVÁ OMIETKA | D144: bezpríplatkový odtieň | E144: 25 | F144: kg | G144: 600 | H144: 67 | I144: 2.68 | J144: 80.4 | K144: 3.216
A145: 2721 | B145: SILIKONOVÁ OMIETKA | D145: príplatok 1; odtieň | E145: 25 | F145: kg | G145: 600 | H145: 77.25 | I145: 3.09 | J145: 92.7 | K145: 3.708
A146: 2721 | B146: SILIKONOVÁ OMIETKA | D146: príplatok 1; odtieň | E146: 25 | F146: kg | G146: 600 | H146: 77.25 | I146: 3.09 | J146: 92.7 | K146: 3.708
A147: 2721 | B147: SILIKONOVÁ OMIETKA | D147: príplatok 1; odtieň | E147: 25 | F147: kg | G147: 600 | H147: 77.25 | I147: 3.09 | J147: 92.7 | K147: 3.708
A148: 2721 | B148: SILIKONOVÁ OMIETKA | D148: príplatok 1; odtieň | E148: 25 | F148: kg | G148: 600 | H148: 77.25 | I148: 3.09 | J148: 92.7 | K148: 3.708
A149: 2721 | B149: SILIKONOVÁ OMIETKA | D149: príplatok 1; odtieň | E149: 25 | F149: kg | G149: 600 | H149: 77.25 | I149: 3.09 | J149: 92.7 | K149: 3.708
A150: 2721 | B150: SILIKONOVÁ OMIETKA | D150: príplatok 1; odtieň | E150: 25 | F150: kg | G150: 600 | H150: 77.25 | I150: 3.09 | J150: 92.7 | K150: 3.708
A151: 2721 | B151: SILIKONOVÁ OMIETKA | D151: príplatok 1; odtieň | E151: 25 | F151: kg | G151: 600 | H151: =E151*I151 -> 77.25 | I151: 3.09 | J151: 92.7 | K151: 3.708
A152: 2721 | B152: SILIKONOVÁ OMIETKA | D152: príplatok 2; odtieň | E152: 25 | F152: kg | G152: 600 | H152: 98.5 | I152: 3.94 | J152: 118.2 | K152: 4.728
A153: 2721 | B153: SILIKONOVÁ OMIETKA | D153: príplatok 2; odtieň | E153: 25 | F153: kg | G153: 600 | H153: 98.5 | I153: 3.94 | J153: 118.2 | K153: 4.728
A154: 2721 | B154: SILIKONOVÁ OMIETKA | D154: príplatok 2; odtieň | E154: 25 | F154: kg | G154: 600 | H154: 98.5 | I154: 3.94 | J154: 118.2 | K154: 4.728
A155: 2721 | B155: SILIKONOVÁ OMIETKA | D155: príplatok 2; odtieň | E155: 25 | F155: kg | G155: 600 | H155: 98.5 | I155: 3.94 | J155: 118.2 | K155: 4.728
A156: 2721 | B156: SILIKONOVÁ OMIETKA | D156: príplatok 2; odtieň | E156: 25 | F156: kg | G156: 600 | H156: 98.5 | I156: 3.94 | J156: 118.2 | K156: 4.728
A157: 2721 | B157: SILIKONOVÁ OMIETKA | D157: príplatok 2; odtieň | E157: 25 | F157: kg | G157: 600 | H157: 98.5 | I157: 3.94 | J157: 118.2 | K157: 4.728
A158: 2721 | B158: SILIKONOVÁ OMIETKA | D158: príplatok 2; odtieň | E158: 25 | F158: kg | G158: 600 | H158: 98.5 | I158: 3.94 | J158: 118.2 | K158: 4.728
A159: 2721 | B159: SILIKONOVÁ OMIETKA | D159: individuálny odtieň | E159: 25 | F159: kg | G159: 600 | H159: podľa | I159: individuálnej | J159: kalkulácie
A160: 2721 | B160: SILIKONOVÁ OMIETKA | D160: individuálny odtieň | E160: 25 | F160: kg | G160: 600 | H160: podľa | I160: individuálnej | J160: kalkulácie
A161: 2721 | B161: SILIKONOVÁ OMIETKA | D161: individuálny odtieň | E161: 25 | F161: kg | G161: 600 | H161: podľa | I161: individuálnej | J161: kalkulácie
A162: 2721 | B162: SILIKONOVÁ OMIETKA | D162: individuálny odtieň | E162: 25 | F162: kg | G162: 600 | H162: podľa | I162: individuálnej | J162: kalkulácie
A163: 2721 | B163: SILIKONOVÁ OMIETKA | D163: individuálny odtieň | E163: 25 | F163: kg | G163: 600 | H163: podľa | I163: individuálnej | J163: kalkulácie
A164: 2721 | B164: SILIKONOVÁ OMIETKA | D164: individuálny odtieň | E164: 25 | F164: kg | G164: 600 | H164: podľa | I164: individuálnej | J164: kalkulácie
A165: 2721 | B165: SILIKONOVÁ OMIETKA | D165: individuálny odtieň | E165: 25 | F165: kg | G165: 600 | H165: podľa | I165: individuálnej | J165: kalkulácie
A166: 2722 | B166: SILIKÁTOVÁ OMIETKA | D166: bezpríplatkový odtieň | E166: 25 | F166: kg | G166: 600 | H166: 69.25 | I166: 2.77 | J166: =H166*1.2 -> 83.1 | K166: =I166*1.2 -> 3.324
A167: 2722 | B167: SILIKÁTOVÁ OMIETKA | D167: bezpríplatkový odtieň | E167: 25 | F167: kg | G167: 600 | H167: 69.25 | I167: 2.77 | J167: =H167*1.2 -> 83.1 | K167: =I167*1.2 -> 3.324
A168: 2722 | B168: SILIKÁTOVÁ OMIETKA | D168: bezpríplatkový odtieň | E168: 25 | F168: kg | G168: 600 | H168: 69.25 | I168: 2.77 | J168: 83.1 | K168: 3.324
A169: 2722 | B169: SILIKÁTOVÁ OMIETKA | D169: bezpríplatkový odtieň | E169: 25 | F169: kg | G169: 600 | H169: 69.25 | I169: 2.77 | J169: 83.1 | K169: 3.324
A170: 2722 | B170: SILIKÁTOVÁ OMIETKA | D170: bezpríplatkový odtieň | E170: 25 | F170: kg | G170: 600 | H170: 69.25 | I170: 2.77 | J170: 83.1 | K170: 3.324
A171: 2722 | B171: SILIKÁTOVÁ OMIETKA | D171: bezpríplatkový odtieň | E171: 25 | F171: kg | G171: 600 | H171: 69.25 | I171: 2.77 | J171: 83.1 | K171: 3.324
A172: 2722 | B172: SILIKÁTOVÁ OMIETKA | D172: bezpríplatkový odtieň | E172: 25 | F172: kg | G172: 600 | H172: 69.25 | I172: 2.77 | J172: 83.1 | K172: 3.324
A173: 2722 | B173: SILIKÁTOVÁ OMIETKA | D173: príplatok 1; odtieň | E173: 25 | F173: kg | G173: 600 | H173: 79.5 | I173: 3.18 | J173: 95.4 | K173: 3.816
A174: 2722 | B174: SILIKÁTOVÁ OMIETKA | D174: príplatok 1; odtieň | E174: 25 | F174: kg | G174: 600 | H174: 79.5 | I174: 3.18 | J174: 95.4 | K174: 3.816
A175: 2722 | B175: SILIKÁTOVÁ OMIETKA | D175: príplatok 1; odtieň | E175: 25 | F175: kg | G175: 600 | H175: 79.5 | I175: 3.18 | J175: 95.4 | K175: 3.816
A176: 2722 | B176: SILIKÁTOVÁ OMIETKA | D176: príplatok 1; odtieň | E176: 25 | F176: kg | G176: 600 | H176: 79.5 | I176: 3.18 | J176: 95.4 | K176: 3.816
A177: 2722 | B177: SILIKÁTOVÁ OMIETKA | D177: príplatok 1; odtieň | E177: 25 | F177: kg | G177: 600 | H177: 79.5 | I177: 3.18 | J177: 95.4 | K177: 3.816
A178: 2722 | B178: SILIKÁTOVÁ OMIETKA | D178: príplatok 1; odtieň | E178: 25 | F178: kg | G178: 600 | H178: 79.5 | I178: 3.18 | J178: 95.4 | K178: 3.816
A179: 2722 | B179: SILIKÁTOVÁ OMIETKA | D179: príplatok 1; odtieň | E179: 25 | F179: kg | G179: 600 | H179: 79.5 | I179: 3.18 | J179: 95.4 | K179: 3.816
A180: 2722 | B180: SILIKÁTOVÁ OMIETKA | D180: príplatok 2; odtieň | E180: 25 | F180: kg | G180: 600 | H180: 100.75 | I180: 4.03 | J180: 120.9 | K180: 4.836
A181: 2722 | B181: SILIKÁTOVÁ OMIETKA | D181: príplatok 2; odtieň | E181: 25 | F181: kg | G181: 600 | H181: 100.75 | I181: 4.03 | J181: 120.9 | K181: 4.836
A182: 2722 | B182: SILIKÁTOVÁ OMIETKA | D182: príplatok 2; odtieň | E182: 25 | F182: kg | G182: 600 | H182: 100.75 | I182: 4.03 | J182: 120.9 | K182: 4.836
A183: 2722 | B183: SILIKÁTOVÁ OMIETKA | D183: príplatok 2; odtieň | E183: 25 | F183: kg | G183: 600 | H183: 100.75 | I183: 4.03 | J183: 120.9 | K183: 4.836
A184: 2722 | B184: SILIKÁTOVÁ OMIETKA | D184: príplatok 2; odtieň | E184: 25 | F184: kg | G184: 600 | H184: 100.75 | I184: 4.03 | J184: 120.9 | K184: 4.836
A185: 2722 | B185: SILIKÁTOVÁ OMIETKA | D185: príplatok 2; odtieň | E185: 25 | F185: kg | G185: 600 | H185: 100.75 | I185: 4.03 | J185: 120.9 | K185: 4.836
A186: 2722 | B186: SILIKÁTOVÁ OMIETKA | D186: príplatok 2; odtieň | E186: 25 | F186: kg | G186: 600 | H186: 100.75 | I186: 4.03 | J186: 120.9 | K186: 4.836
A187: 2722 | B187: SILIKÁTOVÁ OMIETKA | D187: individuálny odtieň | E187: 25 | F187: kg | G187: 600 | H187: podľa | I187: individuálnej | J187: kalkulácie
A188: 2722 | B188: SILIKÁTOVÁ OMIETKA | D188: individuálny odtieň | E188: 25 | F188: kg | G188: 600 | H188: podľa | I188: individuálnej | J188: kalkulácie
A189: 2722 | B189: SILIKÁTOVÁ OMIETKA | D189: individuálny odtieň | E189: 25 | F189: kg | G189: 600 | H189: podľa | I189: individuálnej | J189: kalkulácie
A190: 2722 | B190: SILIKÁTOVÁ OMIETKA | D190: individuálny odtieň | E190: 25 | F190: kg | G190: 600 | H190: podľa | I190: individuálnej | J190: kalkulácie
A191: 2722 | B191: SILIKÁTOVÁ OMIETKA | D191: individuálny odtieň | E191: 25 | F191: kg | G191: 600 | H191: podľa | I191: individuálnej | J191: kalkulácie
A192: 2722 | B192: SILIKÁTOVÁ OMIETKA | D192: individuálny odtieň | E192: 25 | F192: kg | G192: 600 | H192: podľa | I192: individuálnej | J192: kalkulácie
A193: 2722 | B193: SILIKÁTOVÁ OMIETKA | D193: individuálny odtieň | E193: 25 | F193: kg | G193: 600 | H193: podľa | I193: individuálnej | J193: kalkulácie
A194: 2723 | B194: AKRYLÁTOVÁ OMIETKA | D194: bezpríplatkový odtieň | E194: 25 | F194: kg | G194: 600 | H194: 66 | I194: 2.64 | J194: =H194*1.2 -> 79.2 | K194: =I194*1.2 -> 3.168
A195: 2723 | B195: AKRYLÁTOVÁ OMIETKA | D195: bezpríplatkový odtieň | E195: 25 | F195: kg | G195: 600 | H195: 66 | I195: 2.64 | J195: =H195*1.2 -> 79.2 | K195: =I195*1.2 -> 3.168
A196: 2723 | B196: AKRYLÁTOVÁ OMIETKA | D196: bezpríplatkový odtieň | E196: 25 | F196: kg | G196: 600 | H196: 66 | I196: 2.64 | J196: 79.2 | K196: 3.168
A197: 2723 | B197: AKRYLÁTOVÁ OMIETKA | D197: bezpríplatkový odtieň | E197: 25 | F197: kg | G197: 600 | H197: 66 | I197: 2.64 | J197: 79.2 | K197: 3.168
A198: 2723 | B198: AKRYLÁTOVÁ OMIETKA | D198: bezpríplatkový odtieň | E198: 25 | F198: kg | G198: 600 | H198: 66 | I198: 2.64 | J198: 79.2 | K198: 3.168
A199: 2723 | B199: AKRYLÁTOVÁ OMIETKA | D199: príplatok 1; odtieň | E199: 25 | F199: kg | G199: 600 | H199: 76.25 | I199: 3.05 | J199: 91.5 | K199: 3.66
A200: 2723 | B200: AKRYLÁTOVÁ OMIETKA | D200: príplatok 1; odtieň | E200: 25 | F200: kg | G200: 600 | H200: 76.25 | I200: 3.05 | J200: 91.5 | K200: 3.66
A201: 2723 | B201: AKRYLÁTOVÁ OMIETKA | D201: príplatok 1; odtieň | E201: 25 | F201: kg | G201: 600 | H201: =E201*I201 -> 76.25 | I201: 3.05 | J201: 91.5 | K201: 3.66
A202: 2723 | B202: AKRYLÁTOVÁ OMIETKA | D202: príplatok 1; odtieň | E202: 25 | F202: kg | G202: 600 | H202: 76.25 | I202: 3.05 | J202: 91.5 | K202: 3.66
... 423 more rows

Sheet DOPLNKY + IZOLANTY 2024
E1: Cenník 2024 | N1: Platnosť od 1.4.2024
E2: Podmienky predaja upravujú jednotlivé Kúpne zmluvy a Všeobecné obchodné podmienky dodávok stavebných hmôt spoločnosti Cemix, s.r.o.
E3: Uvedené hodnoty spotrieb sú orientačné a v závislosti na štruktúre a nasiakavosti podkladu a spôsobe spracovania výrobku sa môžu odlišovať až o ± 25 % uvádzanej hodnoty.
C5: Platnosť od 1.4.2024 | E5: doplňujíúce informácie vo vysvetlivkách | M5: 1.21
D20: Predaj doplnkov | Q20: Materiál na objednanie
B21: EAN kód | C21: SAP kód | D21: Názov tovaru | F21: Poznámka | G21: Typ tovaru | H21: Merná jednotka | I21: Množstvo v balení | K21: Cenníková cena v € bez DPH | M21: Zľava % | N21: Cena po zľave v € bez DPH
H22: MJ | I22: MJ | N22: Balenie | O22: za MJ
K23: Balenie | L23: MJ
D24: ETICS - Tkaniny
B25: 8595244832927 | C25: BZZ TSR 50 14 00Z | D25: VÝZTUŽNÁ TKANINA R 117 (145 g/m2) | G25: T | H25: m2 | I25: 55 | J25: m2 | K25: =L25*I25 -> 66 | L25: 1.2 | M25: 0 | N25: =K25*(1-M25) -> 66 | O25: =L25*(1-M25/100) -> 1.2 | Q25: ANO
D26: ETICS - Zakládacie lišty AL a okapnice | F26: Ďaľšie informáce | I26: Balenie v MJ | K26: Balenie | L26: za MJ | M26: Zľava
B27: 8595244812172 | C27: BZZ FSZ 02 08 00Z | E27: LO 07/023/2000/lišta zakládacia | H27: 1 | I27: 2 | J27: m | K27: =L27*I27 -> 3.448163265 | L27: 1.724081633 | M27: 0 | N27: =O27*I27 -> 3.448163265 | O27: =L27*(1-M27/100) -> 1.724081633 | Q27: ANO
B28: 8595244812202 | C28: BZZ FSZ 03 08 00Z | E28: LO 07/033/2000/lišta zakládacia | H28: 1 | I28: 2 | J28: m | K28: 3.915102041 | L28: 1.95755102 | M28: 0 | N28: 3.915102041 | O28: 1.95755102 | Q28: ANO
B29: 8595244812219 | C29: BZZ FSZ 04 08 00Z | E29: LO 07/043/2000/lišta zakládacia | H29: 1 | I29: 2 | J29: m | K29: 4.373061224 | L29: 2.186530612 | M29: 0 | N29: 4.373061224 | O29: 2.186530612 | Q29: ANO
B30: 8595244812257 | C30: BZZ FSZ 05 08 00Z | E30: LO 07/053/2000/lišta zakládacia | H30: 1 | I30: 2 | J30: m | K30: 4.74122449 | L30: 2.370612245 | M30: 0 | N30: 4.74122449 | O30: 2.370612245 | Q30: ANO
B31: 8595244812257 | C31: BZZ FSZ 06 08 00Z | E31: LO 07/063/2000/lišta zakládacia | H31: 1 | I31: 2 | J31: m | K31: 5.208163265 | L31: 2.604081633 | M31: 0 | N31: 5.208163265 | O31: 2.604081633 | Q31: ANO
B32: 8595244812318 | C32: BZZ FSZ 07 08 00Z | E32: LO 07/073/2000/lišta zakládacia | H32: 1 | I32: 2 | J32: m | K32: 5.666122449 | L32: 2.833061224 | M32: 0 | N32: 5.666122449 | O32: 2.833061224 | Q32: ANO
B33: 8595244812356 | C33: BZZ FSZ 08 08 00Z | E33: LO 07/083/2000/lišta zakládacia | H33: 1 | I33: 2 | J33: m | K33: 6.124081633 | L33: 3.062040816 | M33: 0 | N33: 6.124081633 | O33: 3.062040816 | Q33: ANO
B34: 8595244812387 | C34: BZZ FSZ 09 08 00Z | E34: LO 07/093/2000/lišta zakládacia | H34: 1 | I34: 2 | J34: m | K34: 6.591020408 | L34: 3.295510204 | M34: 0 | N34: 6.591020408 | O34: 3.295510204 | Q34: ANO
B35: 8595244812424 | C35: BZZ FSZ 10 08 00Z | E35: LO 07/103/2000/lišta zakládacia | H35: 1 | I35: 2 | J35: m | K35: 7.048979592 | L35: 3.524489796 | M35: 0 | N35: 7.048979592 | O35: 3.524489796 | Q35: ANO
B36: 8595244812455 | C36: BZZ FSZ 11 08 00Z | E36: LO 07/113/2000/lišta zakládacia | H36: 1 | I36: 2 | J36: m | K36: 7.506938776 | L36: 3.753469388 | M36: 0 | N36: 7.506938776 | O36: 3.753469388 | Q36: ANO
B37: 8595244812462 | C37: BZZ FSZ 12 08 00Z | E37: LO 07/123/2000/lišta zakládacia | H37: 1 | I37: 2 | J37: m | K37: 7.973877551 | L37: 3.986938776 | M37: 0 | N37: 7.973877551 | O37: 3.986938776 | Q37: ANO
B38: 8595244812622 | C38: BZZ FSZ 13 10 00Z | E38: LO 10/133/2000/lišta zakládacia | H38: 1 | I38: 2 | J38: m | K38: 11.89795918 | L38: 5.948979592 | M38: 0 | N38: 11.89795918 | O38: 5.948979592 | Q38: ANO
B39: 8595244812639 | C39: BZZ FSZ 14 10 00Z | E39: LO 10/143/2000/lišta zakládacia | H39: 1 | I39: 2 | J39: m | K39: 12.55346939 | L39: 6.276734694 | M39: 0 | N39: 12.55346939 | O39: 6.276734694 | Q39: ANO
B40: 8595244812646 | C40: BZZ FSZ 15 10 00Z | E40: LO 10/153/2000/lišta zakládacia | H40: 1 | I40: 2 | J40: m | K40: 13.21795918 | L40: 6.608979592 | M40: 0 | N40: 13.21795918 | O40: 6.608979592 | Q40: ANO
B41: 8595244812660 | C41: BZZ FSZ 16 10 00Z | E41: LO 10/163/2000/lišta zakládacia | H41: 1 | I41: 2 | J41: m | K41: 13.45726531 | L41: 6.728632653 | M41: 0 | N41: 13.45726531 | O41: 6.728632653 | Q41: ANO
B42: 8595244817078 | C42: BZZ FSZ 17 10 00Z | E42: LO 10/173/2000/lišta zakládacia | H42: 1 | I42: 2 | J42: m | K42: 14.52897959 | L42: 7.264489796 | M42: 0 | N42: 14.52897959 | O42: 7.264489796 | Q42: ANO
B43: 8595244816897 | C43: BZZ FSZ 18 10 00Z | E43: LO 10/183/2000/lišta zakládacia | H43: 1 | I43: 2 | J43: m | K43: 15.19346939 | L43: 7.596734694 | M43: 0 | N43: 15.19346939 | O43: 7.596734694 | Q43: ANO
B44: 8595244825066 | C44: BZZ FSZ 19 10 00Z | E44: LO 10/193/2000/lišta zakládacia | H44: 1 | I44: 2 | J44: m | K44: 15.84897959 | L44: 7.924489796 | M44: 0 | N44: 15.84897959 | O44: 7.924489796 | Q44: ANO
B45: 8595244816903 | C45: BZZ FSZ 20 10 00Z | E45: LO 10/203/2000/lišta zakládacia | H45: 1 | I45: 2 | J45: m | K45: 16.5044898 | L45: 8.252244898 | M45: 0 | N45: 16.5044898 | O45: 8.252244898 | Q45: ANO
B46: 8595244817689 | C46: BZZ FSZ 21 10 00Z | E46: LO 10/213/2000/lišta zakládacia | H46: 1 | I46: 2 | J46: m | K46: 17.16897959 | L46: 8.584489796 | M46: 0 | N46: 17.16897959 | O46: 8.584489796 | Q46: ANO
B47: 8595244825042 | C47: BZZ FSZ 22 10 00Z | E47: LO 10/223/2000/lišta zakládacia | H47: 1 | I47: 2 | J47: m | K47: 17.8244898 | L47: 8.912244898 | M47: 0 | N47: 17.8244898 | O47: 8.912244898 | Q47: ANO
B48: 8595244817696 | C48: BZZ FSZ 23 10 00Z | E48: LO 10/233/2000/lišta zakládacia | H48: 1 | I48: 2 | J48: m | K48: 18.48 | L48: 9.24 | M48: 0 | N48: 18.48 | O48: 9.24 | Q48: ANO
B49: 8595244825059 | C49: BZZ FSZ 24 10 00Z | E49: LO 10/243/2000/lišta zakládacia | H49: 1 | I49: 2 | J49: m | K49: 19.1444898 | L49: 9.572244898 | M49: 0 | N49: 19.1444898 | O49: 9.572244898 | Q49: ANO
B50: 8595244801176 | C50: BZZ FSZ 25 10 00Z | E50: LO 10/253/2000/lišta zakládacia | H50: 1 | I50: 2 | J50: m | K50: 19.8 | L50: 9.9 | M50: 0 | N50: 19.8 | O50: 9.9 | Q50: ANO
B51: 8595244846047 | C51: BZZ FSZ 26 10 00Z | E51: LO 10/263/2000/lišta zakládacia | H51: 1 | I51: 2 | J51: m | K51: 33.13469388 | L51: 16.56734694 | M51: 0 | N51: 33.13469388 | O51: 16.56734694 | Q51: ANO
B52: 8595244808250 | C52: BZZ FSZ 27 10 00Z | E52: LO 10/273/2000/lišta zakládacia | H52: 1 | I52: 2 | J52: m | K52: 34.0955102 | L52: 17.0477551 | M52: 0 | N52: 34.0955102 | O52: 17.0477551 | Q52: ANO
B53: 8595244808199 | C53: BZZ FSZ 28 10 00Z | E53: LO 10/283/2000/lišta zakládacia | H53: 1 | I53: 2 | J53: m | K53: 35.06530612 | L53: 17.53265306 | M53: 0 | N53: 35.06530612 | O53: 17.53265306 | Q53: ANO
B54: 8595244808557 | C54: BZZ FSZ 30 10 00Z | E54: LO 10/303/2000/lišta zakládacia | H54: 1 | I54: 2 | J54: m | K54: 36.99591837 | L54: 18.49795918 | M54: 0 | N54: 36.99591837 | O54: 18.49795918 | Q54: ANO
B55: 8595244890392 | C55: BZZ DSK 00 00 00Z | E55: LE-G 05/2500/VERTEX/okapnice LO lišt | H55: 1 | I55: 2.5 | J55: m | K55: 5.556375 | L55: 2.22255 | M55: 0 | N55: 5.556375 | O55: 2.22255 | Q55: ANO
B56: 8595244827374 | C56: BZZ FUA 00 20 00Z | E56: LE-V 06/2500/VERTEX/lišta napojovacia okapnicová | H56: 1 | I56: 2 | J56: m | K56: 3.32 | L56: 1.66 | M56: 0 | N56: 3.32 | O56: 1.66 | Q56: ANO
D57: ETICS - Zakládacia sada PVC | I57: Balenie v MJ | K57: Balenie | L57: za MJ | M57: Zľava
B58: 8595244899104 | C58: BZZ FSM 00 00 00Z | E58: LW-Z20 050/2000/lišta soklová montážna | F58: 30 m/ bal. | H58: 1 | I58: 2 | J58: m | K58: =L58*I58 -> 5.04 | L58: 2.52 | M58: 0 | N58: =O58*I58 -> 5.04 | O58: =L58*(1-M58/100) -> 2.52 | Q58: ANO
B59: 8595244899081 | C59: BZZ FSM 10 00 00Z | E59: LW-Z20/100/2000/lišta soklová montážna | F59: 30 m/ bal. | H59: 1 | I59: 2 | J59: m | K59: 12.24 | L59: 6.12 | M59: 0 | N59: 12.24 | O59: 6.12 | Q59: ANO
B60: 8595244899098 | C60: BZZ FSM 16 00 00Z | E60: LW-Z20/160/2000/lišta soklová montážna | F60: 30 m/ bal. | H60: 1 | I60: 2 | J60: m | K60: 15.64 | L60: 7.82 | M60: 0 | N60: 15.64 | O60: 7.82 | Q60: ANO
B61: 8595244899111 | C61: BZZ FSD 00 00 00Z | E61: LW-Z23/2000/soklový predlžovací diel | F61: 50 m/ bal. | H61: 1 | I61: 2 | J61: m | K61: 7.6 | L61: 3.8 | M61: 0 | N61: 7.6 | O61: 3.8 | Q61: ANO
B62: 8595244826896 | C62: BZZ FSS 00 00 00Z | E62: LW-Z61/1000/spojka soklových lišt LW-Z20 | F62: 20 m/ bal. | H62: 1 | I62: 1 | J62: m | K62: 2.24 | L62: 2.24 | M62: 0 | N62: 2.24 | O62: 2.24 | Q62: ANO
B63: 8595244899074 | C63: BZZ FSR 00 20 00Z | E63: LW-66-2/2000/VERTEX/lišta ukončovacia soklová prechodová s nepriznanou okapnicou | F63: 50 m/ bal. | H63: 1 | I63: 2 | J63: m | K63: 12.6 | L63: 6.3 | M63: 0 | N63: 12.6 | O63: 6.3 | Q63: ANO
D64: ETICS - Zarážacie hmoždinky | I64: Balenie v MJ | K64: Balenie | L64: za MJ | M64: Zľava
B65: 8595244896226 | C65: BZZ HZP 06 06 00Z | E65: ZHH (SMK) 06/060/50ks/plastová zarážacia hmoždinka/PP | H65: 1 | I65: 50 | J65: ks | K65: =L65*I65 -> 2.5 | L65: 0.05 | M65: 0 | N65: =O65*G65 -> 0 | O65: =L65*(1-M65/100) -> 0.05 | Q65: ANO
B66: 8595244896233 | C66: BZZ HZP 08 06 00Z | E66: ZHH (SMK) 06/080/50ks/plastová zarážacia hmoždinka/PP | H66: 1 | I66: 50 | J66: ks | K66: =L66*I66 -> 3 | L66: 0.06 | M66: 0 | N66: =O66*G66 -> 0 | O66: =L66*(1-M66/100) -> 0.06 | Q66: ANO
D67: ETICS - Vymedzovacie podložky | I67: Balenie v MJ | K67: Balenie | L67: za MJ | M67: Zľava
B68: 8595244817320 | C68: BZZ DSP 02 00 00Z | E68: Vymedzovacia podložka pod soklové profily 2mm | H68: 1 | I68: 50 | J68: ks | K68: =L68*I68 -> 5 | L68: 0.1 | M68: 0 | N68: =O68*I68 -> 5 | O68: =L68*(1-M68/100) -> 0.1 | Q68: ANO
B69: 8595244817337 | C69: BZZ DSP 03 00 00Z | E69: Vymedzovacia podložka pod soklové profily 3mm | H69: 1 | I69: 50 | J69: ks | K69: 5.5 | L69: 0.11 | M69: 0 | N69: 5.5 | O69: 0.11 | Q69: ANO
B70: 8595244817344 | C70: BZZ DSP 04 00 00Z | E70: Vymedzovacia podložka pod soklové profily 4mm | H70: 1 | I70: 50 | J70: ks | K70: 6 | L70: 0.12 | M70: 0 | N70: 6 | O70: 0.12 | Q70: ANO
B71: 8595244817351 | C71: BZZ DSP 05 00 00Z | E71: Vymedzovacia podložka pod soklové profily 5mm | H71: 1 | I71: 50 | J71: ks | K71: 6.5 | L71: 0.13 | M71: 0 | N71: 6.5 | O71: 0.13 | Q71: ANO
B72: 8595244810949 | C72: BZZ DSP 08 00 00Z | E72: Vymedzovacia podložka pod soklové profily 8mm | H72: 1 | I72: 50 | J72: ks | K72: 7 | L72: 0.14 | M72: 0 | N72: 7 | O72: 0.14 | Q72: ANO
B73: 8595244807918 | C73: BZZ DSP 10 00 00Z | E73: Vymedzovacia podložka pod soklové profily 10mm | H73: 1 | I73: 50 | J73: ks | K73: 8 | L73: 0.16 | M73: 0 | N73: 8 | O73: 0.16 | Q73: ANO
D74: ETICS - Spojky | I74: Balenie v MJ | K74: Balenie | L74: za MJ | M74: Zľava
B75: 8594030445723 | C75: BZZ DSS 03 00 00Z | E75: Spojka soklových lišt 30mm | H75: 1 | I75: 100 | J75: ks | K75: =L75*I75 -> 14 | L75: 0.14 | M75: 0 | N75: =O75*I75 -> 14 | O75: =L75*(1-M75/100) -> 0.14 | Q75: ANO
B76: 8595244801473 | C76: BZZ DSS 00 00 00Z | E76: Spojka soklových lišt 1000mm | H76: 1 | I76: 1 | J76: ks | K76: =L76*I76 -> 2.19 | L76: 2.19 | M76: 0 | N76: =O76*I76 -> 2.19 | O76: =L76*(1-M76/100) -> 2.19 | Q76: ANO
D77: ETICS - Expanzné pásky | I77: Balenie v MJ | K77: Balenie | L77: za MJ | M77: Zľava
B78: 8595244848065 | C78: BZZ APT 15 06 00Z | E78: EPE-BG1 5-10/15/6000 expanzná páska do exteriéru | H78: 1 | I78: 5.6 | J78: m | K78: =L78*I78 -> 26.376 | L78: 4.71 | M78: 0 | N78: =O78*I78 -> 26.376 | O78: =L78*(1-M78/100) -> 4.71 | Q78: ANO
D79: ETICS - Rohové lišty | I79: Balenie v MJ | K79: Balenie | L79: za MJ | M79: Zľava
B80: 8595244811984 | C80: BZZ FRA 00 10 00Z | E80: LK PVC 100/2500/VERTEX/lišta rohová | H80: 1 | I80: 2.5 | J80: m | K80: =L80*I80 -> 37.5 | L80: 15 | M80: 0 | N80: =O80*I80 -> 37.5 | O80: =L80*(1-M80/100) -> 15 | Q80: ANO
B81: 8595244812042 | C81: BZZ FRW 00 15 00Z | E81: LK PVC 150/2500/VERTEX/lišta rohová | H81: 1 | I81: 2.5 | J81: m | K81: =L81*I81 -> 2.1 | L81: 0.84 | M81: 0 | N81: =O81*I81 -> 2.1 | O81: =L81*(1-M81/100) -> 0.84 | Q81: ANO
B82: 8595244812080 | C82: BZZ FRD 25 00 00Z | E82: LK-BOX 100/25/VERTEX/rohovník vo zvitku | H82: 1 | I82: 25 | J82: m | K82: =L82*I82 -> 30.5 | L82: 1.22 | M82: 0 | N82: =O82*I82 -> 30.5 | O82: =L82*(1-M82/100) -> 1.22 | Q82: ANO
B83: 8595244812097 | C83: BZZ FRE 00 00 00Z | E83: LK-KL2 23,5x23,5/2500/VERTEX/lišta klenbová | H83: 1 | I83: 2.5 | J83: m | K83: =L83*I83 -> 4.475 | L83: 1.79 | M83: 0 | N83: =O83*I83 -> 4.475 | O83: =L83*(1-M83/100) -> 1.79 | Q83: ANO
D84: ETICS - Lišty s okapničkou | I84: Balenie v MJ | K84: Balenie | L84: za MJ | M84: Zľava
B85: 8595244804368 | C85: BZZ FKA 00 00 00Z | E85: LTU 2500/VERTEX/lišta s nepriznanou okapničkou | H85: 1 | I85: 2.5 | J85: m | K85: =L85*I85 -> 3.05 | L85: 1.22 | M85: 0 | N85: =O85*I85 -> 3.05 | O85: =L85*(1-M85/100) -> 1.22 | Q85: ANO
B86: 8595244830336 | C86: BZZ FKN 00 00 00Z | E86: LTDU 2500/VERTEX/lišta s nepriznanou okapničkou | H86: 1 | I86: 2.5 | J86: m | K86: 3.575 | L86: 1.43 | M86: 0 | N86: 3.575 | O86: 1.43 | Q86: ANO
C87: BZZ FRU 00 15 00Z | E87: Protipožiarna lišta AFC 100 x 150 mm | H87: 1 | I87: 2.5 | J87: m | K87: 7.475 | L87: 2.99 | M87: 0 | N87: 7.475 | O87: 2.99 | Q87: ANO
C88: BZZ FRV 00 15 00Z | E88: Protipožiarna lišta s okapniškou AFD 100 x 150 mm | H88: 1 | I88: 2.5 | J88: m | K88: 9.25 | L88: 3.7 | M88: 0 | N88: 9.25 | O88: 3.7 | Q88: ANO
C89: BZZ FRV 00 20 00Z | E89: Protipožiarna lišta s okapničkou AFD 100x200 mm | H89: 1 | I89: 2.5 | J89: m | K89: 9.4 | L89: 3.76 | M89: 0 | N89: 9.4 | O89: 3.76 | Q89: ANO
C90: BZZ FPP 00 00 00Z | E90: Zakládací úholníkový profil protipožiarny | H90: 1 | I90: 2 | J90: m | K90: 8.22 | L90: 4.11 | M90: 0 | N90: 8.22 | O90: 4.11 | Q90: ANO
D91: ETICS - Lišty parapetné | I91: Balenie v MJ | K91: Balenie | L91: za MJ | M91: Zľava
B92: 8595244840557 | C92: BZZ FKF 00 00 01Z | E92: LX-SPP 2000/VERTEX/lišta parapetná napojovacia | H92: 1 | I92: 2 | J92: m | K92: =L92*I92 -> 4.56 | L92: 2.28 | M92: 0 | N92: =O92*I92 -> 4.56 | O92: =L92*(1-M92/100) -> 2.28 | Q92: ANO
B93: 8595244838141 | C93: BZZ FKX 20 00 00Z | E93: LX-H 2000/VERTEX/lišta parapetná napojovacia flexibilná | H93: 1 | I93: 2 | J93: m | K93: =L93*I93 -> 4.24 | L93: 2.12 | M93: 0 | N93: =O93*I93 -> 4.24 | O93: =L93*(1-M93/100) -> 2.12 | Q93: ANO
B94: 8595244848560 | C94: BZZ FKX 220 00 00Z | E94: LX-LPE FLEX 2000/VERTEX/lišta parapetná flexibilná | H94: 1 | I94: 2 | J94: m | K94: =L94*I94 -> 3 | L94: 1.5 | M94: 0 | N94: =O94*I94 -> 3 | O94: =L94*(1-M94/100) -> 1.5 | Q94: ANO
D95: ETICS - Lišty okenné | I95: Balenie v MJ | K95: Balenie | L95: za MJ | M95: Zľava
B96: 8595244827947 | C96: BZZ FKJ 06 00 01Z | E96: LS-VH 06/1400/VERTEX/lišta okenná začisťovacia 6mm | H96: 1 | I96: 1.4 | J96: m | K96: =L96*I96 -> 1.694 | L96: 1.21 | M96: 0 | N96: =O96*I96 -> 1.694 | O96: =L96*(1-M96/100) -> 1.21 | Q96: ANO
B97: 8595244899364 | C97: BZZ FKJ 06 00 02Z | E97: LS-VH 06/1600/VERTEX/lišta okenná začiaťovacia 6mm | H97: 1 | I97: 1.6 | J97: m | K97: 1.936 | L97: 1.21 | M97: 0 | N97: 1.936 | O97: 1.21 | Q97: ANO
B98: 8595244800810 | C98: BZZ FKJ 06 00 00Z | E98: LS-VH 06/2400/VERTEX/lišta okenná začiaťovacia 6mm | H98: 1 | I98: 2.4 | J98: m | K98: 2.904 | L98: 1.21 | M98: 0 | N98: 2.904 | O98: 1.21 | Q98: ANO
B99: 8595244816712 | C99: BZZ FKS 00 00 01Z | E99: LS-EKO 1400/VERTEX/lišta okenná začisťovacia | H99: 1 | I99: 1.4 | J99: m | K99: 2.254 | L99: 1.61 | M99: 0 | N99: 2.254 | O99: 1.61 | Q99: ANO
B100: 8595244816729 | C100: BZZ FKS 00 00 02Z | E100: LS-EKO 1600/VERTEX/lišta okenná začisťovacia | H100: 1 | I100: 1.6 | J100: m | K100: 2.576 | L100: 1.61 | M100: 0 | N100: 2.576 | O100: 1.61 | Q100: ANO
B101: 8595244816736 | C101: BZZ FKS 00 00 00Z | E101: LS-EKO 2400/VERTEX/lišta okenná začisťovacia | H101: 1 | I101: 2.4 | J101: m | K101: 3.864 | L101: 1.61 | M101: 0 | N101: 3.864 | O101: 1.61 | Q101: ANO
B102: 8595244834297 | C102: BZZ FKQ 00 00 00Z | E102: LS2-FLEX 06/2600/VERTEX/lišta okenná začisťovacia 2D 6mm | H102: 1 | I102: 2.6 | J102: m | K102: 5.2 | L102: 2 | M102: 0 | N102: 5.2 | O102: 2 | Q102: ANO
B103: 8595244838196 | C103: BZZ FKC 06 26 00Z | E103: LS2-FLEX 06/2600/slonová kosť RAL 1015/VERTEX/lišta okenná začisťovacia 2D 6mm | H103: 1 | I103: 2.6 | J103: m | K103: 5.928 | L103: 2.28 | M103: 0 | N103: 5.928 | O103: 2.28 | Q103: ANO
B104: 8595244838165 | C104: BZZ FKC 06 26 02Z | E104: LS2-FLEX 06/2600/hnedá RAL 8024/VERTEX/lišta okenná začisťovacia 2D 6mm | H104: 1 | I104: 2.6 | J104: m | K104: 5.928 | L104: 2.28 | M104: 0 | N104: 5.928 | O104: 2.28 | Q104: ANO
B105: 8595244838189 | C105: BZZ FKC 06 26 03Z | E105: LS2-FLEX 06/2600/šedá svetlá RAL 7047/VERTEX/lišta okenná začisťovacia 2D 6mm | H105: 1 | I105: 2.6 | J105: m | K105: 5.928 | L105: 2.28 | M105: 0 | N105: 5.928 | O105: 2.28 | Q105: ANO
B106: 8595244838172 | C106: BZZ FKC 06 26 04Z | E106: LS2-FLEX 06/2600/šedá tmavá RAL 7005/VERTEX/lišta okenná začisťovacia 2D 6mm | H106: 1 | I106: 2.6 | J106: m | K106: 5.928 | L106: 2.28 | M106: 0 | N106: 5.928 | O106: 2.28 | Q106: ANO
B107: 8595244839056 | C107: BZZ FKC 06 26 05Z | E107: LS2-FLEX 06/2600/šedá antracitová RAL 7016/VERTEX/lišta okenná začisťovacia 2D 6mm | H107: 1 | I107: 2.6 | J107: m | K107: 5.928 | L107: 2.28 | M107: 0 | N107: 5.928 | O107: 2.28 | Q107: ANO
B108: 8595244818891 | C108: BZZ FKQ 00 00 01Z | E108: LS2-30 plus (LW30 PLUS) 09/2400/VERTEX/lišta okenná začisťovacia 2D 9mm | H108: 1 | I108: 2.4 | J108: m | K108: 15.744 | L108: 6.56 | M108: 0 | N108: 15.744 | O108: 6.56 | Q108: ANO
B109: 8595244818884 | C109: BZZ FKR 00 00 01Z | E109: LS3-29 plus (LW29 PLUS) 2400/VERTEX/lišta okenná začisťovacia 3D | H109: 1 | I109: 2.4 | J109: m | K109: 18.384 | L109: 7.66 | M109: 0 | N109: 18.384 | O109: 7.66 | Q109: ANO
D110: ETICS - Lišty dilatačné | I110: Balenie v MJ | K110: Balenie | L110: za MJ | M110: Zľava
B111: 8595244822058 | C111: BZZ FDC 00 00 00Z | E111: LD-W50 UNI 5,0/10/2000/VERTEX/lišta dilatačná priebežná/rohová 2D | H111: 1 | I111: 2 | J111: m | K111: =L111*I111 -> 19.42 | L111: 9.71 | M111: 0 | N111: =O111*I111 -> 19.42 | O111: =L111*(1-M111/100) -> 9.71 | Q111: ANO
B112: 8595244832552 | C112: BZZ FDA 85 25 00Z | E112: LD-W56 UNI 8,5/25/2000/VERTEX/lišta dilatačná priebežná/rohová 3D | H112: 1 | I112: 2 | J112: m | K112: 26.9 | L112: 13.45 | M112: 0 | N112: 26.9 | O112: 13.45 | Q112: ANO
B113: 8595244845132 | C113: BZZ FDA 00 00 00Z | E113: LD-NH P PVC 06 2500/VERTEX/lišta dilatačná priebežná 2D | H113: 1 | I113: 2.5 | J113: m | K113: 17.675 | L113: 7.07 | M113: 0 | N113: 17.675 | O113: 7.07 | Q113: ANO
B114: 8595244845125 | C114: BZZ FDD 00 00 00Z | E114: LD-NH R PVC 06 2500/VERTEX/lišta dilatačná rohová 2D | H114: 1 | I114: 2.5 | J114: m | K114: 17.675 | L114: 7.07 | M114: 0 | N114: 17.675 | O114: 7.07 | Q114: ANO
B115: 8595244829460 | C115: BZZ FDA 00 25 00Z | E115: LDZ-UNI P 2500/dilatačná zátka priebežná pryžová | H115: 1 | I115: 2 | J115: m | K115: 15.2 | L115: 7.6 | M115: 0 | N115: 15.2 | O115: 7.6 | Q115: ANO
B116: 8595244847693 | C116: BZZ FDA 25 00 00Z | E116: LDZ-UNI R 2500/dilatačná zátka rohová pryžová | H116: 1 | I116: 2 | J116: m | K116: 15.2 | L116: 7.6 | M116: 0 | N116: 15.2 | O116: 7.6 | Q116: ANO
D117: ETICS - Lišty ukončovacie | I117: Balenie v MJ | K117: Balenie | L117: za MJ | M117: Zľava
B118: 8595244817818 | C118: BZZ FUT 03 00 00Z | E118: LC-L 03/2000/VERTEX/lišta ukončovacia omietková 3mm | H118: 1 | I118: 2 | J118: m | K118: =L118*I118 -> 2 | L118: 1 | M118: 0 | N118: =O118*I118 -> 2 | O118: =L118*(1-M118/100) -> 1 | Q118: ANO
B119: 8595244817825 | C119: BZZ FUT 06 00 00Z | E119: LC-L 06/2000/VERTEX/lišta ukončovacia omietková 6mm | H119: 1 | I119: 2 | J119: m | K119: =L119*I119 -> 2.4 | L119: 1.2 | M119: 0 | N119: =O119*I119 -> 2.4 | O119: =L119*(1-M119/100) -> 1.2 | Q119: ANO
D120: ETICS - Montážne príslušenstvo | I120: Balenie v MJ | K120: Balenie | L120: za MJ | M120: Zľava
B121: 8595057698499 | C121: BZZ FKE 00 00 01Z | E121: KEZ 120x120/200mm elektroinstalačná krabica pre ETICS | H121: 1 | I121: 1 | J121: ks | K121: =L121*I121 -> 32.6 | L121: 32.6 | M121: 0 | N121: =O121*I121 -> 32.6 | O121: =L121*(1-M121/100) -> 32.6 | Q121: ANO
B122: 8595568910561 | C122: BZZ FKE 00 00 03Z | E122: KEZ-3 100(120)x230/250 elektroinstalačná viacnásobná krabica pre ETICS | H122: 1 | I122: 1 | J122: ks | K122: =L122*I122 -> 40.26 | L122: 40.26 | M122: 0 | N122: =O122*I122 -> 40.26 | O122: =L122*(1-M122/100) -> 40.26 | Q122: ANO
B123: 8595057698505 | C123: BZZ FKE 00 00 02Z | E123: MDZ 120x120/200mm - montážna doska pre ETICS | H123: 1 | I123: 1 | J123: ks | K123: =L123*I123 -> 32.52 | L123: 32.52 | M123: 0 | N123: =O123*I123 -> 32.52 | O123: =L123*(1-M123/100) -> 32.52 | Q123: ANO
B124: 4033119000452 | C124: BZZ FNL 00 00 00Z | E124: Profi nožnice Löwe | H124: 1 | I124: 1 | J124: ks | K124: =L124*I124 -> 69.2 | L124: 69.2 | M124: 0 | N124: =O124*I124 -> 69.2 | O124: =L124*(1-M124/100) -> 69.2 | Q124: ANO
D125: OMIETKY
D126: OMIETKY - Lišty rohové | I126: Balenie v MJ | K126: Balenie | L126: za MJ | M126: Zľava
B127: 8595244833627 | C127: BZZ FRA 06 43 00Z | E127: P-H PVC 06/43x43/2500/roh ostrý/lišta rohová | H127: 1 | I127: 2.5 | J127: m | K127: =L127*I127 -> 2.625 | L127: 1.05 | M127: 0 | N127: =O127*I127 -> 2.625 | O127: =L127*(1-M127/100) -> 1.05 | Q127: ANO
B128: 8595244833634 | C128: BZZ FRA 10 43 00Z | E128: P-H PVC 10/43x43/2500/roh ostrý/lišta rohová | H128: 1 | I128: 2.5 | J128: m | K128: =L128*I128 -> 2.825 | L128: 1.13 | M128: 0 | N128: =O128*I128 -> 2.825 | O128: =L128*(1-M128/100) -> 1.13
B129: 8595244833641 | C129: BZS FRA 14 43 00Z | E129: P-H PVC 14/43x43/2500/roh ostrý/lišta rohová | H129: 1 | I129: 2.5 | J129: m | K129: =L129*I129 -> 3 | L129: 1.2 | M129: 0 | N129: =O129*I129 -> 3 | O129: =L129*(1-M129/100) -> 1.2 | Q129: ANO
D130: OMIETKY - Lišty ukončovacie | I130: Balenie v MJ | K130: Balenie | L130: za MJ | M130: Zľava
B131: 8595244838417 | C131: BZZ FUP 06 47 00Z | E131: P-B PVC 06/47/2500/lišta ukončovacia s okapnicou | H131: 1 | I131: 2.5 | J131: m | K131: =L131*I131 -> 2.175 | L131: 0.87 | M131: 0 | N131: =O131*I131 -> 2.175 | O131: =L131*(1-M131/100) -> 0.87 | Q131: ANO
B132: 8595244836444 | C132: BZZ FUP 10 47 00Z | E132: P-B PVC 10/47/2500/lišta ukončovacia s okapnicou | H132: 1 | I132: 2.5 | J132: m | K132: 2.475 | L132: 0.99 | M132: 0 | N132: 2.475 | O132: 0.99 | Q132: ANO
B133: 8595244836451 | C133: BZZ FUP 14 47 00Z | E133: P-B PVC 14/47/2500/lišta ukončovacia s okapnicou | H133: 1 | I133: 2.5 | J133: m | K133: 2.725 | L133: 1.09 | M133: 0 | N133: 2.725 | O133: 1.09 | Q133: ANO
B134: 8595244834433 | C134: BZZ FUT 06 26 00Z | E134: P-U2 PVC 06/26/2500/lišta ukončovacia | H134: 1 | I134: 2.5 | J134: m | K134: 1.775 | L134: 0.71 | M134: 0 | N134: 1.775 | O134: 0.71
B135: 8595244834440 | C135: BZZ FUT 10 26 00Z | E135: P-U2 PVC 10/26/2500/lišta ukončovacia | H135: 1 | I135: 2.5 | J135: m | K135: 1.9 | L135: 0.76 | M135: 0 | N135: 1.9 | O135: 0.76 | Q135: ANO
B136: 8595244834457 | C136: BZZ FUT 14 26 00Z | E136: P-U2 PVC 14/26/2500/lišta ukončovacia | H136: 1 | I136: 2.5 | J136: m | K136: 2.25 | L136: 0.9 | M136: 0 | N136: 2.25 | O136: 0.9 | Q136: ANO
D137: OMIETKY - Lišty začisťovacie | I137: Balenie v MJ | K137: Balenie | L137: za MJ | M137: Zľava
B138: 8595244800995 | C138: BZZ FKC 06 14 03Z | E138: PS-VH 06/1400/lišta okenná začisťovacia 6mm | H138: 1 | I138: 1.4 | J138: m | K138: =L138*I138 -> 0.882 | L138: 0.63 | M138: 0 | N138: =O138*I138 -> 0.882 | O138: =L138*(1-M138/100) -> 0.63
B139: 8595244801008 | C139: BZZ FKC 06 16 02Z | E139: PS-VH 06/1600/lišta okenná začisťovacia 6mm | H139: 1 | I139: 1.6 | J139: m | K139: 1.008 | L139: 0.63 | M139: 0 | N139: 1.008 | O139: 0.63 | Q139: ANO
B140: 8595244801015 | C140: BZZ FKC 06 24 02Z | E140: PS-VH 06/2400/lišta okenná začisťovacia 6mm | H140: 1 | I140: 2.4 | J140: m | K140: 1.512 | L140: 0.63 | M140: 0 | N140: 1.512 | O140: 0.63 | Q140: ANO
B141: 8595244845804 | C141: BZZ FKC 06 24 07Z | E141: PS-VHL 06/2400/lišta okenná začisťovacia 6mm s lamelou | H141: 1 | I141: 2.4 | J141: m | K141: 1.68 | L141: 0.7 | M141: 0 | N141: 1.68 | O141: 0.7 | Q141: ANO
B142: 8595244845842 | C142: BZZ FKC 06 24 08Z | E142: PS-VHL 06/2400/slonová kosť RAL 1015/lišta okenná začisťovacia 6mm s lamelou | H142: 1 | I142: 2.4 | J142: m | K142: 1.776 | L142: 0.74 | M142: 0 | N142: 1.776 | O142: 0.74 | Q142: ANO
B143: 8595244845811 | C143: BZZ FKC 06 24 03Z | E143: PS-VHL 06/2400/hnedá RAL 8024/lišta okenná začisťovacia 6mm s lamelou | H143: 1 | I143: 2.4 | J143: m | K143: 1.776 | L143: 0.74 | M143: 0 | N143: 1.776 | O143: 0.74 | Q143: ANO
B144: 8595244845835 | C144: BZZ FKC 06 24 04Z | E144: PS-VHL 06/2400/šedá svetlá RAL 7047/lišta okenná začisťovacia 6mm s lamelou | H144: 1 | I144: 2.4 | J144: m | K144: 1.776 | L144: 0.74 | M144: 0 | N144: 1.776 | O144: 0.74 | Q144: ANO
B145: 8595244845828 | C145: BZZ FKC 06 24 05Z | E145: PS-VHL 06/2400/šedá tmavá RAL 7005/lišta okenná začisťovaciaí 6mm s lamelou | H145: 1 | I145: 2.4 | J145: m | K145: 1.776 | L145: 0.74 | M145: 0 | N145: 1.776 | O145: 0.74 | Q145: ANO
B146: 8595244845866 | C146: BZZ FKC 06 24 06Z | E146: PS-VHL 06/2400/šedá antracitová RAL 7016/lišta okenná začisťovacia 6mm s lamelou | H146: 1 | I146: 2.4 | J146: m | K146: 1.872 | L146: 0.78 | M146: 0 | N146: 1.872 | O146: 0.78 | Q146: ANO
D147: OMIETKY - Rýchloomietníky | I147: Balenie v MJ | K147: Balenie | L147: za MJ | M147: Zľava
B148: 8595244817207 | C148: BZS ROM 00 04 T0Z | E148: P-RO PVC 04/3000/rýchloomietnik | H148: 1 | I148: 3 | J148: m | K148: =L148*I148 -> 1.74 | L148: 0.58 | M148: 0 | N148: =O148*I148 -> 1.74 | O148: =L148*(1-M148/100) -> 0.58 | Q148: ANO
B149: 8594157430206 | C149: BZS ROM 00 06 T0Z | E149: P-RO PVC 06/3000/rýchloomietnik | H149: 1 | I149: 3 | J149: m | K149: =L149*I149 -> 1.8 | L149: 0.6 | M149: 0 | N149: =O149*I149 -> 1.8 | O149: =L149*(1-M149/100) -> 0.6 | Q149: ANO
B150: 8595244817191 | C150: BZS ROM 00 08 T0Z | E150: P-RO PVC 08/3000/rýchloomietnik | H150: 1 | I150: 3 | J150: m | K150: =L150*I150 -> 1.83 | L150: 0.61 | M150: 0 | N150: =O150*I150 -> 1.83 | O150: =L150*(1-M150/100) -> 0.61 | Q150: ANO
B151: 8594157430251 | C151: BZS ROM 00 10 T0Z | E151: P-RO PVC 10/3000/rýchloomietnik | H151: 1 | I151: 3 | J151: m | K151: =L151*I151 -> 1.83 | L151: 0.61 | M151: 0 | N151: =O151*I151 -> 1.83 | O151: =L151*(1-M151/100) -> 0.61 | Q151: ANO
E152: HMOŽDINKY
D153: Hmoždinky FISCHER Hmoždinka pre EPS a MW; A, B, C, D, E; oceľový šrób | I153: Balenie v MJ | K153: Balenie | L153: za MJ | M153: Zľava
B154: 4048962459272 | C154: BZZ HTK 11 08 F2Z | E154: TermoZ CS II 8/95 | H154: 1 | I154: 100 | J154: ks | K154: =L154*I154 -> 45 | L154: 0.45 | M154: 0 | N154: =O154*I154 -> 45 | O154: =L154*(1-M154/100) -> 0.45 | Q154: ANO
B155: 4048962459289 | C155: BZZ HTK 13 08 F2Z | E155: TermoZ CS II 8/115 | H155: 1 | I155: 100 | J155: ks | K155: 52 | L155: 0.52 | M155: 0 | N155: 52 | O155: 0.52 | Q155: ANO
B156: 4048962417234 | C156: BZZ HTK 15 08 F2Z | E156: Termoz CS II 8/135 | H156: 1 | I156: 100 | J156: ks | K156: 57 | L156: 0.57 | M156: 0 | N156: 57 | O156: 0.57 | Q156: ANO
B157: 4048962417241 | C157: BZZ HTK 17 08 F2Z | E157: Termoz CS II 8/155 | H157: 1 | I157: 100 | J157: ks | K157: 68 | L157: 0.68 | M157: 0 | N157: 68 | O157: 0.68 | Q157: ANO
B158: 4048962417258 | C158: BZZ HTK 19 08 F2Z | E158: Termoz CS II 8/175 | H158: 1 | I158: 100 | J158: ks | K158: 74 | L158: 0.74 | M158: 0 | N158: 74 | O158: 0.74 | Q158: ANO
B159: 4048962417265 | C159: BZZ HTK 21 08 F2Z | E159: Termoz CS II 8/195 | H159: 1 | I159: 100 | J159: ks | K159: 87 | L159: 0.87 | M159: 0 | N159: 87 | O159: 0.87 | Q159: ANO
B160: 4048962417272 | C160: BZZ HTK 23 08 F2Z | E160: Termoz CS II 8/215 | H160: 1 | I160: 100 | J160: ks | K160: 106 | L160: 1.06 | M160: 0 | N160: 106 | O160: 1.06 | Q160: ANO
B161: 4048962417289 | C161: BZZ HTK 25 08 F3Z | E161: Termoz CS II 8/235 | H161: 1 | I161: 100 | J161: ks | K161: 127 | L161: 1.27 | M161: 0 | N161: 127 | O161: 1.27 | Q161: ANO
B162: 4048962417296 | C162: BZZ HTK 27 08 F3Z | E162: Termoz CS II 8/255 | H162: 1 | I162: 100 | J162: ks | K162: 146 | L162: 1.46 | M162: 0 | N162: 146 | O162: 1.46 | Q162: ANO
B163: 4048962459296 | C163: BZZ HTK 29 08 F3Z | E163: TermoZ CS II 8/275 | H163: 1 | I163: 100 | J163: ks | K163: 170 | L163: 1.7 | M163: 0 | N163: 170 | O163: 1.7 | Q163: ANO
B164: 4048962459302 | C164: BZZ HTK 31 08 F3Z | E164: TermoZ CS II 8/295 | H164: 1 | I164: 100 | J164: ks | K164: 188 | L164: 1.88 | M164: 0 | N164: 188 | O164: 1.88 | Q164: ANO
B165: 4048962459319 | C165: BZZ HTK 33 08 F2Z | E165: TermoZ CS II 8/315 | H165: 1 | I165: 100 | J165: ks | K165: 228 | L165: 2.28 | M165: 0 | N165: 228 | O165: 2.28 | Q165: ANO
B166: 4048962459326 | C166: BZZ HTK 35 08 F2Z | E166: TermoZ CS II 8/335 | H166: 1 | I166: 100 | J166: ks | K166: 256 | L166: 2.56 | M166: 0 | N166: 256 | O166: 2.56 | Q166: ANO
B167: 4048962459333 | C167: BZZ HTK 37 08 F2Z | E167: TermoZ CS II 8/355 | H167: 1 | I167: 100 | J167: ks | K167: 285 | L167: 2.85 | M167: 0 | N167: 285 | O167: 2.85 | Q167: ANO
B168: 4048962459340 | C168: BZZ HTK 39 08 F2Z | E168: TermoZ CS II 8/375 | H168: 1 | I168: 100 | J168: ks | K168: 310 | L168: 3.1 | M168: 0 | N168: 310 | O168: 3.1 | Q168: ANO
B169: 4048962466195 | C169: BZZ HTK 40 08 F2Z | E169: TermoZ CS II 8/395 | H169: 1 | I169: 100 | J169: ks | K169: 624 | L169: 6.24 | M169: 0 | N169: 624 | O169: 6.24 | Q169: ANO
B170: 4048962466201 | C170: BZZ HTK 42 08 F2Z | E170: TermoZ CS II 8/415 | H170: 1 | I170: 100 | J170: ks | K170: 648 | L170: 6.48 | M170: 0 | N170: 648 | O170: 6.48 | Q170: ANO
B171: 4048962466218 | C171: BZZ HTK 44 08 F2Z | E171: TermoZ CS II 8/435 | H171: 1 | I171: 100 | J171: ks | K171: 671 | L171: 6.71 | M171: 0 | N171: 671 | O171: 6.71 | Q171: ANO
B172: 4048962466225 | C172: BZZ HTK 46 08 F2Z | E172: TermoZ CS II 8/455 | H172: 1 | I172: 100 | J172: ks | K172: 694 | L172: 6.94 | M172: 0 | N172: 694 | O172: 6.94 | Q172: ANO
D173: Hmoždinky FISCHER Hmoždinka so zapust.tanierom pre MW; A, B, C, D, E; oceľový šrób | I173: Balenie v MJ | K173: Balenie | L173: za MJ | M173: Zľava
B174: 4048962459364 | C174: BZZ HTK 13 08 F4Z | E174: TermoZ CS II 8/115 DT 110 V | H174: 1 | I174: 100 | J174: ks | K174: =L174*I174 -> 94 | L174: 0.94 | M174: 0 | N174: =O174*I174 -> 94 | O174: =L174*(1-M174/100) -> 0.94 | Q174: ANO
B175: 4048962420371 | C175: BZZ HTK 15 08 F4Z | E175: Termoz CS II 8/135 DT 110 V | H175: 1 | I175: 100 | J175: ks | K175: 97 | L175: 0.97 | M175: 0 | N175: 97 | O175: 0.97 | Q175: ANO
B176: 4048962420388 | C176: BZZ HTK 17 08 F4Z | E176: Termoz CS II 8/155 DT 110 V | H176: 1 | I176: 100 | J176: ks | K176: 102 | L176: 1.02 | M176: 0 | N176: 102 | O176: 1.02 | Q176: ANO
B177: 4048962420395 | C177: BZZ HTK 19 08 F4Z | E177: Termoz CS II 8/175 DT 110 V | H177: 1 | I177: 100 | J177: ks | K177: 110 | L177: 1.1 | M177: 0 | N177: 110 | O177: 1.1 | Q177: ANO
B178: 4048962420401 | C178: BZZ HTK 21 08 F4Z | E178: Termoz CS II 8/195 DT 110 V | H178: 1 | I178: 50 | J178: ks | K178: 68 | L178: 1.36 | M178: 0 | N178: 68 | O178: 1.36 | Q178: ANO
B179: 4048962420418 | C179: BZZ HTK 23 08 F4Z | E179: Termoz CS II 8/215 DT 110 V | H179: 1 | I179: 50 | J179: ks | K179: 69 | L179: 1.38 | M179: 0 | N179: 69 | O179: 1.38 | Q179: ANO
B180: 4048962420425 | C180: BZZ HTK 25 08 F5Z | E180: Termoz CS II 8/235 DT 110 V | H180: 1 | I180: 50 | J180: ks | K180: 79.5 | L180: 1.59 | M180: 0 | N180: 79.5 | O180: 1.59 | Q180: ANO
B181: 4048962420432 | C181: BZZ HTK 27 08 F5Z | E181: Termoz CS II 8/255 DT 110 V | H181: 1 | I181: 50 | J181: ks | K181: 86 | L181: 1.72 | M181: 0 | N181: 86 | O181: 1.72 | Q181: ANO
B182: 4048962459371 | C182: BZZ HTK 29 08 F5Z | E182: Termoz CS 8/275 DT 110 V | H182: 1 | I182: 50 | J182: ks | K182: 94 | L182: 1.88 | M182: 0 | N182: 94 | O182: 1.88 | Q182: ANO
B183: 4048962459388 | C183: BZZ HTK 31 08 F5Z | E183: Termoz CS 8/295 DT 110 V | H183: 1 | I183: 50 | J183: ks | K183: 105 | L183: 2.1 | M183: 0 | N183: 105 | O183: 2.1 | Q183: ANO
B184: 4048962459395 | C184: BZZ HTK 33 08 F4Z | E184: Termoz CS 8/315 DT 110 V | H184: 1 | I184: 50 | J184: ks | K184: 126.5 | L184: 2.53 | M184: 0 | N184: 126.5 | O184: 2.53 | Q184: ANO
B185: 4048962459401 | C185: BZZ HTK 35 08 F4Z | E185: Termoz CS 8/335 DT 110 V | H185: 1 | I185: 50 | J185: ks | K185: 142.5 | L185: 2.85 | M185: 0 | N185: 142.5 | O185: 2.85 | Q185: ANO
B186: 4048962459418 | C186: BZZ HTK 37 08 F4Z | E186: Termoz CS 8/355 DT 110 V | H186: 1 | I186: 50 | J186: ks | K186: 158 | L186: 3.16 | M186: 0 | N186: 158 | O186: 3.16 | Q186: ANO
B187: 4048962459425 | C187: BZZ HTK 39 08 F4Z | E187: Termoz CS 8/375 DT 110 V | H187: 1 | I187: 50 | J187: ks | K187: 172 | L187: 3.44 | M187: 0 | N187: 172 | O187: 3.44 | Q187: ANO
B188: 4048962466232 | C188: BZZ HTK 40 08 F4Z | E188: TermoZ CS II 8/395 DT 110 V | H188: 1 | I188: 50 | J188: ks | K188: 324 | L188: 6.48 | M188: 0 | N188: 324 | O188: 6.48 | Q188: ANO
B189: 4048962466249 | C189: BZZ HTK 42 08 F4Z | E189: TermoZ CS II 8/415 DT 110 V | H189: 1 | I189: 50 | J189: ks | K189: 335.5 | L189: 6.71 | M189: 0 | N189: 335.5 | O189: 6.71 | Q189: ANO
B190: 4048962466256 | C190: BZZ HTK 44 08 F4Z | E190: TermoZ CS II 8/435 DT 110 V | H190: 1 | I190: 50 | J190: ks | K190: 347 | L190: 6.94 | M190: 0 | N190: 347 | O190: 6.94 | Q190: ANO
B191: 4048962466263 | C191: BZZ HTK 46 08 F4Z | E191: TermoZ CS II 8/455 DT 110 V | H191: 1 | I191: 50 | J191: ks | K191: 359 | L191: 7.18 | M191: 0 | N191: 359 | O191: 7.18 | Q191: ANO
D192: Hmoždinky FISCHER Montážne nástroje pre Termoz CS 8 a Termoz CS 8 DT 110 V | I192: Balenie v MJ | K192: Balenie | L192: za MJ | M192: Zľava
B193: 4048962217513 | C193: BZZ HMN 00 00 F0Z | E193: Montážny prípravok s 6-ti hrannou stopkou pre Termoz CS | H193: 1 | I193: 1 | J193: ks | K193: =L193*I193 -> 134 | L193: 134 | M193: 0 | N193: =O193*I193 -> 134 | O193: =L193*(1-M193/100) -> 134 | Q193: ANO
B194: 4048962217520 | C194: BZZ HMN 00 00 F2Z | E194: Montážny prípravok SDS Plus | H194: 1 | I194: 1 | J194: ks | K194: =L194*I194 -> 134 | L194: 134 | M194: 0 | N194: =O194*I194 -> 134 | O194: =L194*(1-M194/100) -> 134 | Q194: ANO
B195: 4048962225167 | C195: BZZ HMN 31 00 F3Z | E195: Predĺžený bit T25 CS 98,5mm (pre CS-R 250-310mm) | H195: 1 | I195: 1 | J195: ks | K195: =L195*I195 -> 55 | L195: 55 | M195: 0 | N195: =O195*I195 -> 55 | O195: =L195*(1-M195/100) -> 55 | Q195: ANO
B196: 4048962225174 | C196: BZZ HMN 39 00 F4Z | E196: Predĺžený bit T25 CS 178,5mm (pre CS 250-390mm) | H196: 1 | I196: 1 | J196: ks | K196: =L196*I196 -> 61 | L196: 61 | M196: 0 | N196: =O196*I196 -> 61 | O196: =L196*(1-M196/100) -> 61 | Q196: ANO
D197: Hmoždinky FISCHER Zátky pre zapustené hmoždinky | I197: Balenie v MJ | K197: Balenie | L197: za MJ | M197: Zľava
B198: 4048962289213 | C198: BZZ HYU 00 00 F0Z | E198: FISCHER EPS zátka biela (62mm) - pre hmoždinky CS | H198: 1 | I198: 200 | J198: ks | K198: =L198*I198 -> 20 | L198: 0.1 | M198: 0 | N198: =O198*I198 -> 20 | O198: =L198*(1-M198/100) -> 0.1 | Q198: ANO
B199: 8592541001698 | C199: BZZ HYU 00 00 F1Z | E199: FISCHER EPS zátka šedá (62mm) - pre hmoždinky CS | H199: 1 | I199: 200 | J199: ks | K199: =L199*I199 -> 26 | L199: 0.13 | M199: 0 | N199: =O199*I199 -> 26 | O199: =L199*(1-M199/100) -> 0.13 | Q199: ANO
B200: 4048962264838 | C200: BZZ HVU 06 00 F0Z | E200: FISCHER MW zátka (65 mm) | H200: 1 | I200: 100 | J200: ks | K200: =L200*I200 -> 14 | L200: 0.14 | M200: 0 | N200: =O200*I200 -> 14 | O200: =L200*(1-M200/100) -> 0.14 | Q200: ANO
D201: Hmoždinky FISCHER Hmoždinky ECOTWIST - EPS; A, B, C, D, E; oceľový šrób | I201: Balenie v MJ | K201: Balenie | L201: za MJ | M201: Zľava
B202: 4048962202649 | C202: BZZ HTK 10 00 F3Z | E202: Termoz SV II ecotwist 0 - 10 | H202: 1 | I202: 100 | J202: ks | K202: =L202*I202 -> 100 | L202: 1 | M202: 0 | N202: =O202*I202 -> 100 | O202: =L202*(1-M202/100) -> 1 | Q202: ANO
B203: 4048962202656 | C203: BZZ HTK 30 00 F3Z | E203: Termoz SV II ecotwist 10 - 30 | H203: 1 | I203: 100 | J203: ks | K203: 107 | L203: 1.07 | M203: 0 | N203: 107 | O203: 1.07 | Q203: ANO
B204: 4048962202663 | C204: BZZ HTK 60 00 F3Z | E204: Termoz SV II ecotwist 30 - 60 | H204: 1 | I204: 100 | J204: ks | K204: 134 | L204: 1.34 | M204: 0 | N204: 134 | O204: 1.34 | Q204: ANO
B205: 4048962202670 | C205: BZZ HYZ 00 00 F0Z | E205: Termoz SV II záslepka z bieleho EPS | H205: 1 | I205: 200 | J205: ks | K205: 20 | L205: 0.1 | M205: 0 | N205: 20 | O205: 0.1 | Q205: ANO
B206: 4048962202687 | C206: BZZ HYZ 00 00 F1Z | E206: Termoz SV II záslepka zo šedého EPS | H206: 1 | I206: 200 | J206: ks | K206: 24 | L206: 0.12 | M206: 0 | N206: 24 | O206: 0.12 | Q206: ANO
B207: 4048962433364 | C207: BZZ HMN 26 00 F0Z | E207: Termoz SV II montážny prípravok 260 mm | H207: 1 | I207: 1 | J207: ks | K207: 48.43 | L207: 48.43 | M207: 0 | N207: 48.43 | O207: 48.43 | Q207: ANO
B208: 4048962204452 | C208: BZZ HMN 40 00 F0Z | E208: Termoz SV II montážny prípravok 400 mm | H208: 1 | I208: 1 | J208: ks | K208: 80.9 | L208: 80.9 | M208: 0 | N208: 80.9 | O208: 80.9 | Q208: ANO
D209: Hmoždinky FISCHER EPS, MW; A, B, C, D, E; zatĺkacia s plast.ocelovým trňom | I209: Balenie v MJ | K209: Balenie | L209: za MJ | M209: Zľava
B210: 4048962080988 | C210: BZZ HTN 11 08 F0Z | E210: Termoz CN 8/110 NEUTRAL - plast.ocelový trň | H210: 1 | I210: 100 | J210: ks | K210: =L210*I210 -> 34 | L210: 0.34 | M210: 0 | N210: =O210*I210 -> 34 | O210: =L210*(1-M210/100) -> 0.34 | Q210: ANO
B211: 4048962080995 | C211: BZZ HTN 13 08 F0Z | E211: Termoz CN 8/130 NEUTRAL - plast.ocelový trň | H211: 1 | I211: 100 | J211: ks | K211: 37 | L211: 0.37 | M211: 0 | N211: 37 | O211: 0.37 | Q211: ANO
B212: 4048962081008 | C212: BZZ HTN 15 08 F0Z | E212: Termoz CN 8/150 NEUTRAL - plast.ocelový trň | H212: 1 | I212: 100 | J212: ks | K212: 40 | L212: 0.4 | M212: 0 | N212: 40 | O212: 0.4 | Q212: ANO
B213: 4048962081015 | C213: BZZ HTN 17 08 F0Z | E213: Termoz CN 8/170 NEUTRAL - plast.ocelový trň | H213: 1 | I213: 100 | J213: ks | K213: 44 | L213: 0.44 | M213: 0 | N213: 44 | O213: 0.44 | Q213: ANO
B214: 4048962081022 | C214: BZZ HTN 19 08 F0Z | E214: Termoz CN 8/190 NEUTRAL - plast.ocelový trn | H214: 1 | I214: 100 | J214: ks | K214: 49 | L214: 0.49 | M214: 0 | N214: 49 | O214: 0.49 | Q214: ANO
B215: 4048962081039 | C215: BZZ HTN 21 08 F0Z | E215: Termoz CN 8/210 NEUTRAL - plast.ocelový trň | H215: 1 | I215: 100 | J215: ks | K215: 54 | L215: 0.54 | M215: 0 | N215: 54 | O215: 0.54 | Q215: ANO
... 480 more rows
